Workbook

Sheet Cover Page
D1: Add company logo
N2: Version 2.1 11/11/19
B8: Add photo
N13: Notes:
N14: This template may require adjustments by individual operators to meet specific reporting requirements as defined in the site Permit(s)
B29: Annual Performance Report 2021
B31: Permit EPR/DP3104SC/T001
B33: SUEZ R&R UK LTD SUEZ R&R Tees Valley – Energy from Waste Facility Tees Valley – Energy from Waste Facility
B35: other name of facility (if applicable)
B37: SUEZ
B39: Year: | C39: 2021
B41: Address: | C41: Haverton Hill Road, Billingham TS23 1PY
B43: Tel: | C43: 01642 373919
B45: Email: | C45: paula.bakes@suez.com
B47: Prepared by: | C47: Paula Bakes | F47: Position: | G47: EIR Manager
B49: Approved by: | C49: Darren Thomas | F49: Position: | G49: Plant Manager
B51: Version: | C51: 1
B53: Issue Date:

Sheet Contents
A1: =+'Cover Page'!$B$29 -> Annual Performance Report 2021 | E1: =+'Cover Page'!$B$33 -> SUEZ R&R UK LTD SUEZ R&R Tees Valley – Energy from Waste Facility Tees Valley – Energy from Waste Facility
A3: Contents | K3: Notes:
A4: Section | B4: Subject | H4: Page | K4: Section references and Page nos. to be inserted
B5: Facility Information | K5: Sections and Subjects may require adjustment by individual operators to meet specific reporting requirements as defined in the sites Permit(s)
B6: Operational Summary
B7: Operational Data
B8: Performance Form 1
B9: Energy Form 1
B10: Permit Compliance
B11: Improvements
B12: Public Liasion
B13: Residue Quality - Optional
B14: Emissions to Water
B15: Emissions to Air (periodically monitored)
B16: Emissions to Air (continuously monitored)
B17: Hydrogen Chloride emissions
B18: Sulphur Dioxdie emsissions
B19: Oxides of Notrigen emissions
B20: Total Organic Carbon emissions
B21: Particulate Matter emissions
B22: Carbon Monoxide emissions
B23: Ammonia emissions
A26: Version Control
A27: Section | B27: Information | H27: Date
B29: Annual Performance Report 2021
A34: Distribution
A35: Copy | B35: Name, Role | H35: No.
A44: This report is required under the Industrial Emissions Directive’s Article 55(2) requirements on reporting and public information on waste incineration plants and co-incineration plants, which require the operator to produce an annual report on the functioning and monitoring of the plant and make it available to the public.

Sheet Facility Info
A1: =+'Cover Page'!$B$29 -> Annual Performance Report 2021 | E1: =+'Cover Page'!$B$33 -> SUEZ R&R UK LTD SUEZ R&R Tees Valley – Energy from Waste Facility Tees Valley – Energy from Waste Facility
A3: Plant Description and Design | K3: Notes:
A5: The Energy from Waste facility operates 24/7 and can receive up to 2,800 tonnes of municipal waste from local councils per week. The plant has five furnace lines with a combined processing capacity of 756,000 tonnes per annum. The heat produced by waste incineration is used to raise superheated steam which is harnessed to turn 3 x single-cylinder turbine linked to an electricity generator producing approx 55 MWh of electricity. Power produced, is sold to the National Grid The plant has 5 Lines. Incoming waste is delivered to site by refuse collection trucks, it is checked in, weighted, then delivered into the reception hall. RECEPTION HALL 2 large reception hall allows refuse collection trucks to manoeuvre and tip waste safely. Air needed for combustion is drawn into the furnace from here so that odour and dust do not escape from the building. BUNKER Waste vehicles reverse to a wheel stop and tip their loads into a large concrete bunker. Mixing of waste occurs as the crane driver sorts the waste looking for unsuitable wastes to be removed, and to improve the homogeneity of the incinerator feedstock. | K5: Include summary of plant design, design capacity, no. of combustion lines, electrical and heat capacity and any other general information that descibes the facility, its location and purpose
A20: Summary of Operational Processes and Procedures
A22: CONTROL ROOM There is 2 plant control rooms which centralises the operation of all equipment, including the grab crane used to mix and load waste into hoppers that feeds the furnace. All on-site functions are monitored automatically and manually. Its systems verify in real time that equipment is functioning properly, continuously monitor the combustion gas, and maximise the efficiency of the entire EfW process. GRATE AND BOILER Waste is lifted into the charging hoppers by the crane, from here waste falls into the furnace-charging chute and then onto the grate system for incineration. The thermal energy released from the burning is used to convert water to super-heated steam. At high pressure, this steam drives a turbine to generate electricity. ELECTRICITY GENERATION Electricity is generated at 11kv, with an electric capacity of 55 MWh. BOTTOM ASH Ash left on the grate after incineration is carried by conveyor to a storage bunker. In the bottom ash recycling facility a magnet above a conveyor extracts ferrous material for recycling. The remaining bottom ash processed for recycling. AIR-COOLED AND WATER-COOLED CONDENSERS After exiting the turbine, the air stream is cooled and condensed back into water through air condensers for line 3,4&5 and river water is used as the cooling media for line 1, and 2. This recovered water is treated and reused in the boilers to produce more steam. EMISSION CONTROL The gases from the furnace are subject to a rigorous cleaning process involving selective non-catalytic reduction (SNCR), spray absorbers, and active carbon injection. This removes oxides of nitrogen, acidic gases, dioxins, and heavy metals from the gas stream. AIR POLLUTION CONTROL RESIDUE (APCR) The cleaned gas is passed through fine-fabric bag filters to remove solid particles before it is emitted through the stack. The resultant APCR residue, or fly-ash, contains particles from the incineration process, lime used in the spray absorbers, salts and carbon dust. It is stored in a sealed silo until it removed from site for disposal. EMISSIONS MONITORING As they pass through the stack, the residual flue gases from the process are continuously monitored before release. Each incinerator line has and independent stack and emissions monitoring system. This data is relayed automatically to the control room. SURFACE WATER Surface water run-off exits the installation to a pipeline that discharges to the River Tees. Surface water run offs from fuel delivery areas are protected by oil/water interceptors. Periodic boiler blow down during maintenance of the incinerator are also discharged to this pipeline. | K22: Include summary of key processes and procedures such as (but not limited to); waste reception, control rooms, grate, bed and bolier, energy & heat generation, cooling systems, residue management, emission controls, health and safety systems, maintenance

Sheet Operational Data
A1: =+'Cover Page'!$B$29 -> Annual Performance Report 2021 | E1: =+'Cover Page'!$B$33 -> SUEZ R&R UK LTD SUEZ R&R Tees Valley – Energy from Waste Facility Tees Valley – Energy from Waste Facility
A3: Operational Data
A4: Plant Size | B4: 756000 | D4: tonnes pa | E4: 1&2 - 81, 3-45, 4&5-92 | F4: MWth | G4: 29 | H4: MWe
A5: No. of combustion lines | B5: 5 | D5: No. of Turbines: | F5: 3
A7: Waste types received | B7: Unit | C7: Q1 | D7: Q2 | E7: Q3 | F7: Q4 | G7: Year Total | H7: %
A8: Household / Local Authority | B8: tonnes | C8: 169191 | D8: 159568 | E8: 167754 | F8: 163281 | G8: =SUM(C8:F8) -> 659794 | H8: =IF(G8>0,G8/$G$18,"-") -> 0.9754278069
A9: Commercial & Industrial | C9: 2241 | D9: 1437 | E9: 3635 | F9: 5521 | G9: =SUM(C9:F9) -> 12834 | H9: 0.01897355913
A10: Hazardous | C10: - | D10: - | E10: - | F10: - | G10: 0 | H10: -
A11: Clinical | C11: 734 | D11: 886 | E11: 1100 | F11: 1067 | G11: 3787 | H11: 0.005598633975
A12: Waste wood (biomass) | C12: - | D12: - | E12: - | F12: - | G12: 0 | H12: -
A13: Refuse derived fuel | C13: - | D13: - | E13: - | F13: - | G13: 0 | H13: -
A14: Solid recovered fuel | C14: - | D14: - | E14: - | F14: - | G14: 0 | H14: -
A15: Other [Please specify] | C15: - | D15: - | E15: - | F15: - | G15: 0 | H15: -
A16: Other [Please specify] | C16: - | D16: - | E16: - | F16: - | G16: 0
A17: Other [Please specify] | C17: - | D17: - | E17: - | F17: - | G17: 0
A18: Total waste received | C18: =SUM(C8:C17) -> 172166 | D18: =SUM(D8:D17) -> 161891 | E18: 172489 | F18: 169869 | G18: 676415 | H18: 1
A19: Rejected Waste | G19: =SUM(C19:F19) -> 0 | H19: =IF(G19>0,G19/$G$18,"-") -> -
A20: Waste transferred out | C20: 1136 | G20: =SUM(C20:F20) -> 1136 | H20: =IF(G20>0,G20/$G$18,"-") -> 0.001679442354
A21: Total waste combusted | C21: =C18-SUM(C19:C20) -> 171030 | D21: =D18-SUM(D19:D20) -> 161891 | E21: 172489 | F21: 169869 | G21: =SUM(C21:F21) -> 675279 | H21: =IF(G21>0,G21/$G$18,"-") -> 0.9983205576
A22: Energy Useage / Export | B22: Unit | C22: Q1 | D22: Q2 | E22: Q3 | F22: Q4 | G22: Year Total | H22: KWh/te
A23: Power Generated | B23: MWh | C23: 110847 | D23: 105030 | E23: 108477 | F23: 101515 | G23: =SUM(C23:F23) -> 425869 | H23: =IF(G23>0,G23*1000/$G$21,"-") -> 630.6563657
A24: Power Exported | C24: 97896 | D24: 92855 | E24: 94998 | F24: 94424 | G24: =SUM(C24:F24) -> 380173 | H24: =IF(G24>0,G24*1000/$G$21,"-") -> 562.9865581
A25: Power Used on site | C25: 12950 | D25: 12175 | E25: 13480 | F25: 13090 | G25: =SUM(C25:F25) -> 51695 | H25: =IF(G25>0,G25*1000/$G$21,"-") -> 76.55354305
A26: Power Imported | C26: 268 | D26: 319 | E26: 303 | F26: 330 | G26: 1220 | H26: =IF(G26>0,G26*1000/$G$21,"-") -> 1.806660654
A27: Parasitic Load | B27: % | C27: 0.119 | D27: 0.119 | E27: 0.127 | F27: 0.073 | G27: =IF(G23>0,1-G24/(G23+G26),"-") -> 0.10985064
A28: Thermal Energy Produced | B28: GWh | G28: =SUM(C28:F28) -> 0 | H28: =IF(G28>0,G28*1000/$G$21,"-") -> -
A29: Thermal Energy Exported | G29: 0 | H29: =IF(G29>0,G29*1000/$G$21,"-") -> -
A30: R1 value | G30: Design / Operational / n/a
A32: Waste Disposal & Recovery | B32: Unit | C32: Q1 | D32: Q2 | E32: Q3 | F32: Q4 | G32: Year Total | H32: % inputs
A33: APC Residues - produced | B33: tonnes | C33: 6153 | D33: 5550 | E33: 5610 | F33: 4830 | G33: =SUM(C33:F33) -> 22143 | H33: =IF(G33>0,G33/$G$21,"-") -> 0.03279089088
A34: IBA - produced | C34: 43024 | D34: 43540 | E34: 42163 | F34: 39472 | G34: 168199 | H34: =IF(G34>0,G34/$G$21,"-") -> 0.2490807503
A35: Metals recycling | C35: 7159 | D35: 5747 | E35: 5792 | F35: 4633 | G35: =SUM(C35:F35) -> 23331 | H35: 0.03455016371
A36: Other | C36: 0 | D36: 0 | E36: 0 | F36: 0 | G36: =SUM(C36:F36) -> 0 | H36: -
A37: Other | C37: 0 | D37: 0 | E37: 0 | F37: 0 | G37: 0 | H37: -
A38: Other | C38: 0 | D38: 0 | E38: 0 | F38: 0 | G38: 0 | H38: -
C39: 2021
A40: Raw Material Usage | B40: Unit | C40: Q1 | D40: Q2 | E40: Q3 | F40: Q4 | G40: Year Total | H40: kg or Ltr /te
A41: Mains Water | B41: m3 | C41: 31296 | D41: 16339 | E41: 19972 | F41: 25257 | G41: =SUM(C41:F41) -> 92864 | H41: =IF(G41>0,G41/$G$21,"-") -> 0.1375194549
A42: Other Water | B42: m3 | C42: - | D42: - | E42: - | F42: - | G42: =SUM(C42:F42) -> 0 | H42: =IF(G42>0,G42/$G$21,"-") -> -
A43: Ammonia / Urea | B43: kgs | C43: 284 | D43: 300 | E43: 376 | F43: 328 | G43: 1288 | H43: 0.001907359773
A44: Activated Carbon | B44: kgs | C44: 69 | D44: 68 | E44: 68 | F44: 63 | G44: 268 | H44: 0.0003968729962
A45: Lime / hydrated lime | B45: kgs | C45: 1716 | D45: 1653 | E45: 1601 | F45: 1518 | G45: 6488 | H45: 0.009607880595
A46: Fuel oil | B46: ltrs | C46: 263151 | D46: 218636 | E46: 267868 | F46: 267553 | G46: 1017208 | H46: 1.506352189
A47: Gas | B47: cf | G47: =SUM(C47:F47) -> 0 | H47: -
A48: Other | C48: 0 | D48: 0 | E48: 0 | F48: 0 | G48: 0 | H48: -
A50: Summary of Hours | B50: Line/Unit | C50: Q1 | D50: Q2 | E50: Q3 | F50: Q4 | G50: Year Total
A51: Hours of waste combustion, total | B51: 1 | C51: 1908 | D51: 1953 | E51: 2175 | F51: 1523 | G51: =SUM(C51:F51) -> 7559 | H51: x %
A52: Hours of waste combustion, total | B52: 2 | C52: 1924 | D52: 2155 | E52: 2144 | F52: 1601 | G52: 7824 | H52: x %
A53: Hours of waste combustion, total | B53: 3 | C53: 2098 | D53: 1431 | E53: 2196 | F53: 2185 | G53: 7910 | H53: x %
A54: Hours of waste combustion, total | B54: 4 | C54: 2127 | D54: 1887 | E54: 1940 | F54: 2207 | G54: 8161 | H54: x %
A55: Hours of waste combustion, total | B55: 5 | C55: 2096 | D55: 2184 | E55: 1766 | F55: 2174 | G55: =SUM(C55:F55) -> 8220 | H55: x %
A56: Overall Availability, mean avg. of all lines, hrs | G56: =AVERAGE(G51:G55) -> 7934.8 | H56: x %
A57: Hours of turbine operations, total | B57: 1&2 | C57: 1945 | D57: 2183 | E57: 2197 | F57: 1823 | G57: 8148 | H57: x %
A58: Hours of turbine operations, total | B58: 3 | C58: 2038 | D58: 1425 | E58: 2172 | F58: 2199 | G58: 7834 | H58: x %
A59: Hours of turbine operations, total | B59: 4&5 | C59: 2156 | D59: 2184 | E59: 1972 | F59: 2206 | G59: 8518 | H59: x %
A60: Hours of heat / steam export | C60: 0 | D60: 0 | E60: 0 | F60: 0 | G60: 0 | H60: =IF(B60>0,G59/8760,"n/a") -> n/a
A61: Net Calorific Value of waste (5line average) | B61: MJ/kg | C61: 8.95 | D61: 9.23 | E61: 9.23 | F61: 9.16 | G61: 36.57 | H61: -
A62: Abnormal Events | B62: qty. | F62: 1 | G62: 1 | H62: =IF(G62>0,"yes","no") -> yes
A63: Abnormal operation | B63: hours | F63: 0.5 | G63: 0.5 | H63: =+(G63)/8760 -> 5.707762557e-05
A64: Permit Breaches | B64: qty. | C64: 1 | G64: 1 | H64: =IF(G64>0,"yes","no") -> yes

Sheet Operational Summary
A1: =+'Cover Page'!$B$29 -> Annual Performance Report 2021 | E1: =+'Cover Page'!$B$33 -> SUEZ R&R UK LTD SUEZ R&R Tees Valley – Energy from Waste Facility Tees Valley – Energy from Waste Facility
A3: Summary of Plant Operations and Maintenance during the reporting year | K3: Notes:
A5: Lines 4 and 5 operated in a stable and consistent manner for the majority of the year with two predominant issues. In July approx. 57 hours of production were lost on both lines as a consequence of a failure to an air cooled condenser fan and in September approx. 144 hours of plant availability were lost as a consequence of a component failure within the turbine control panel. Minor losses were also encountered throughout the year predominantly as a consequence of blockages in the bottom ash extractor on both lines. Planned maintenance for Line 4 was carried out from 10th to 28th February and line 5 from 16th February to the 2nd March (no major upgrades or replacements were installed). Lines 1&2 operated very well during the year, with a failure of the plants main control system affecting both lines in July and failure of the emissions control system in October being the predominant unplanned events. Minor losses were also encountered during the year as a consequence of failure on line 2 waste feed chute door, a steam leak on a boiler drain line and issues with the bottom ash extractor on both lines . Due to Covid 19 restrictions the minor outage planned for April was cancelled with the major outage completed between the 23rd July to the 29th August. Major upgrades included installation of steam line separators, furnace refractory replacement and grate repairs. Lines 3 operated well all year, with major unplanned events occurring in February as a consequence of a boiler tube leak and August due to an electrical panel failure. Minor unplanned events were also encountered as a consequence of bottom ash conveyor blockages. Planned maintenance for Line 3 was carried out during a major outage which took place from 25th May to 23rd June. Major upgrades again included refractory furnace replacement and grate repairs. During 2020, two emissions breaches occurred across the site with a half hourly VoC reported in April on line 4 and a half hourly SO2 on Line 1 in December | K5: Include summary of key operational and/or mainteanance activity undertaken in the year, such as any major component upgrades and/or replacements
A29: Summary of Residue Handling for the reporting year | B29: Annual Performance Report 2021
A31: No significant issues have been reported in 2021. Work Has progressed to improve and optimise bottom ash conveyor reliability on lines 1&2 and in addition further project work has been completed to prevent bottom ash blockages. The residues from Boiler Ash and Flue Gas Treatment were diverted to Augean for further treatment prior to landfill for Lines 1,2,4&5. Modification works have been completed in 2021 on line 3 to divert boiler ash into the IBA. There has been no issues reported with IBA all material taken to Blue Phoenix Teesside where it is processed and then transported off site and sold. | K31: Include in here a summary of residue handling regimes and destinations

Sheet Perf. Form 1
A1: =+'Cover Page'!C39 -> 2021 | B1: Annual Reporting Performance Form 1
A3: =+'Cover Page'!B31 -> Permit EPR/DP3104SC/T001 | F3: Operator: | G3: =+'Cover Page'!B37:I37 -> 0
A4: Facility: | B4: =+'Cover Page'!B33:I33 -> SUEZ R&R UK LTD SUEZ R&R Tees Valley – Energy from Waste Facility Tees Valley – Energy from Waste Facility | F4: Form: | G4: Performance 1
A6: Reporting Period from: | D6: January | F6: to: | G6: December
A8: =+A1 -> 2021 | B8: Annual Reporting of Waste Disposal and Recovery
A9: Waste Description | C9: Disposal Route(s) | E9: Disposal Tonnes | G9: Recovery Tonnes | I9: % / tonne of waste incinerated
A10: 1) Hazardous Wastes
A11: APC Residues | C11: Augean | E11: 22143 | I11: =IF((E11+G11)>0,(E11+G11)/'Operational Data'!$G$21, "-") -> 0.03279089088
A12: IBA | I12: =IF((E12+G12)>0,(E12+G12)/'Operational Data'!$G$18, "-") -> -
I13: =IF((E13+G13)>0,(E13+G13)/'Operational Data'!$G$18, "-") -> -
I14: =IF((E14+G14)>0,(E14+G14)/'Operational Data'!$G$18, "-") -> -
A15: Total Hazardous Waste | E15: =SUM(E11:F14) -> 22143 | G15: =SUM(G11:H14) -> 0 | I15: =IF((E15+G15)>0,(E15+G15)/'Operational Data'!$G$21, "-") -> 0.03279089088
A17: 2) Non-Hazardous Wastes
A18: IBA | C18: Recycled | E18: 168198 | I18: =IF((E18+G18)>0,(E18+G18)/'Operational Data'!$G$21, "-") -> 0.2490792695
A19: Ferrous Metal | I19: =IF((E19+G19)>0,(E19+G19)/'Operational Data'!$G$18, "-") -> -
A20: Process Water | I20: =IF((E20+G20)>0,(E20+G20)/'Operational Data'!$G$21, "-") -> -
I21: =IF((E21+G21)>0,(E21+G21)/'Operational Data'!$G$18, "-") -> -
I22: =IF((E22+G22)>0,(E22+G22)/'Operational Data'!$G$18, "-") -> -
A23: Total Non-Hazardous Waste | E23: =SUM(E18:F22) -> 168198 | G23: =SUM(G18:H22) -> 0 | I23: =IF((E23+G23)>0,(E23+G23)/'Operational Data'!$G$21, "-") -> 0.2490792695
A24: TOTAL WASTE | E24: =+E23+E15 -> 190341 | G24: =+G23+G15 -> 0 | I24: =IF((E24+G24)>0,(E24+G24)/'Operational Data'!$G$21, "-") -> 0.2818701603
A26: Operator’s comments :
A31: =+A1 -> 2021 | B31: Annual Reporting of Water and Other Raw Material Usage
A32: Raw Material | E32: Usage | G32: Unit | H32: Specific Useage | J32: Unit
A33: Mains Water | E33: =+'Operational Data'!G41 -> 92864 | G33: m3 | H33: =IF(E33>0,E33/'Operational Data'!$G$21,"-") -> 0.1375194549 | J33: m3/te
A34: Total Water | E34: =+'Operational Data'!G42 -> 0 | G34: m3 | H34: =IF(E34>0,E34/'Operational Data'!$G$21,"-") -> - | J34: m3/te
A35: Urea / Ammonia | E35: =+'Operational Data'!G43 -> 1288 | G35: kg | H35: =IF(E35>0,E35/'Operational Data'!$G$21,"-") -> 0.001907359773 | J35: kg/te
A36: Activated Carbon | E36: =+'Operational Data'!G44 -> 268 | G36: kg | H36: =IF(E36>0,E36/'Operational Data'!$G$21,"-") -> 0.0003968729962 | J36: kg/te
A37: Lime / hydrated lime / Sodium Bicarb. | E37: =+'Operational Data'!G45 -> 6488 | G37: kg | H37: =IF(E37>0,E37/'Operational Data'!$G$21,"-") -> 0.009607880595 | J37: kg/te
A39: Operator’s comments :
A43: =+A31 -> 2021 | B43: Annual Reporting of other performance indicators
A44: Parameter | C44: Results by Line
C45: A1 | D45: A2 | E45: A3 | F45: A4 | G45: A5 | I45: Turbine 1 | J45: Turbine 2
A46: Operating hours for the year, hours | C46: ='Operational Data'!G51 -> 7559 | D46: ='Operational Data'!G52 -> 7824 | E46: ='Operational Data'!G53 -> 7910 | F46: ='Operational Data'!G54 -> 8161 | G46: ='Operational Data'!G55 -> 8220
A47: Number of periods of abnormal operation, qty.
A48: Cumulative hours of abnormal operation for this year, hours
A50: Operator’s comments :
A54: Signed: | G54: Date:

Sheet Energy Form 1
A1: =+'Cover Page'!C39 -> 2021 | B1: Annual Reporting of Energy Usage/Export
A3: =+'Cover Page'!B31 -> Permit EPR/DP3104SC/T001 | F3: Operator: | G3: =+'Cover Page'!B37:I37 -> 0
A5: Facility: | B5: =+'Cover Page'!B33:I33 -> SUEZ R&R UK LTD SUEZ R&R Tees Valley – Energy from Waste Facility Tees Valley – Energy from Waste Facility | F5: Form: | G5: Energy 1
A7: Reporting Period from: | D7: =+'Perf. Form 1'!D6:E6 -> January | F7: to: | G7: =+'Perf. Form 1'!G6:H6 -> December
A9: Energy Source | D9: Energy Usage | F9: Unit | G9: Specific Useage (KWh/tonne incinerated
A10: Electricity Produced | D10: =+'Operational Data'!G23 -> 425869 | F10: MWh | G10: =+'Operational Data'!H23 -> 630.6563657
A11: Electricity Imported | D11: =+'Operational Data'!G26 -> 1220 | F11: MWh | G11: =+'Operational Data'!H26 -> 1.806660654
A12: Electricity Exported | D12: =+'Operational Data'!G24 -> 380173 | F12: MWh | G12: =+'Operational Data'!H24 -> 562.9865581
A13: Gas Oil | F13: tonnes
A14: Steam/hot water exported | F14: GWh | G14: =+'Operational Data'!H29 -> -
A18: Operator’s comments :
A29: Signed: | B29: Annual Performance Report 2021 | G29: Date:
C39: 2021

Sheet Permit Compliance
A1: =+'Cover Page'!$B$29 -> Annual Performance Report 2021 | E1: =+'Cover Page'!$B$33 -> SUEZ R&R UK LTD SUEZ R&R Tees Valley – Energy from Waste Facility Tees Valley – Energy from Waste Facility
A3: Summary of Permit Compliance
A5: Compliance with permit limits for continuously monitored pollutants
A7: The plant met its emission limits as shown in the table below:
A8: Substance | C8: Percentage time compliant during operation
C9: Half-hourly limit | F9: Daily limit
A10: Particulates | C10: 1 | F10: 1
A11: Oxides of nitrogen | C11: 1 | F11: 1
A12: Sulphur dioxide | C12: 0.9998 | F12: 1
A13: Carbon monoxide | C13: 1 | F13: 1
A14: Total organic carbon | C14: 1 | F14: 1
A15: Hydrogen chloride | C15: 1 | F15: 1
A16: Hydrogen fluoride | C16: N/A | F16: N/A
A19: Summary of any notifications or non-compliances under the permit
A20: Date | B20: Summary of notification or non-compliance [including Line/Reference] | E20: Reason | H20: Measures taken to prevent reoccurrence
A21: 09.03.2021 | B21: Line 1 - SO2 - High levels due to non conforming waste | E21: On the day the breach occurred the SO2 procedure was followed by the Operations Team. • Lowered the GSA cooling setpoint to 145 degrees, to introduce more water, increased the reactivity of the lime. • Lime addition rate was increased to the maximum – 100% • Furnace set was reduced • Waste feed was stopped. All these control measures were in place but it was not possible to bring the SO2 back under control during this period. Waste feed did not recommence until SO2 was back within limits – 40mins later. The subsequent half hourly was below the ELV @ 65.5mg/Nm3. A RCA was conducted and the main focus was non-conforming waste. | H21: • Focus on CA deliveries by targeting weekend – Spotchecks • TBT to be issued – Mixing of waste • Review of Pit procedure ( segregation of CA waste) • Review Induction and SOP for new staff at the CA site in relation to segregation of waste • Speak with public about the contents of the waste being brought in – to identify if plasterboard is mixed in with the waste
A22: 30.12.2021 | B22: Line 3 Invalid half hour
A24: 17/18 - October 2020 | B24: L1 23.00 -17/10/20 L2 14.30 18/10/20 - Ended L1 02.00-18/10/20 L2 16.18 18/10/20 Fault on the dust CEMS system | E24: Brought both lines off. On the 17th/18th October both Lines 1&2 has dust issues. Line 1 – the dust readings went to maximum scale at approximately 23.00hrs. Routine checks were carried out on the bag filter compartments by isolating each independent compartment, there was no reduction in the readings, so this suggested false readings on the dust analyser. Checks were carried out on site by the Maintenance team and they were unable to rectify the false readings, therefore Line 1 was shutdown. On the 18th Line 2 dust readings dropped to zero, therefor the line was also shutdown. The decision was taken to bring both lines off due to failure of the continuous emissions monitoring system and having no back up dust analyser for Lines 1&2. A specialist contractor visited site and identified that the dust analysers had, had a CPU failure. A full system diagnostic was carried out and both CPU unit was replaced, and readings were established on both lines. Consideration is now being made to installed a back-up dust analyser.
A27: Summary of any complaints received and actions to taken to resolve them.
A28: Date | B28: Summary of complaint [including Line/Reference] | E28: Reason * | H28: Measures taken to prevent reoccurrence
B29: Annual Performance Report 2021
E34: * including whether substantiated by the operator or the EA
C39: 2021

Sheet Improvements
A1: =+'Cover Page'!$B$29 -> Annual Performance Report 2021 | E1: =+'Cover Page'!$B$33 -> SUEZ R&R UK LTD SUEZ R&R Tees Valley – Energy from Waste Facility Tees Valley – Energy from Waste Facility
A3: Summary of Plant Improvements
A5: Summary of any efficiency improvements that have been completed within the year.
A6: Modifications conducted to divert boiler ash into bottom ash on line 3 in accordance with BAT as identified in the latest BREF review document.
A16: Summary of any permit improvement conditions that have been completed within the year and the resulting environmental benefits.
A17: None
A27: Summary of any changes to the plant or operating techniques which required a variation to the permit and a summary of the resulting environmental impact.
A28: None
A38: Summary of any other improvements made to the plant or planned to be made and a summary of the resulting environmental benefits.
A39: Modifications to be conducted on Line 3 during 2022 to divert boiler ash into the bottom ash residue in accordance with BAT as identified in the latest BREF review document. FGT optimisation to be conducted on Lines 1,2.4&5. Replacement of main turbine bypass valve on Line 3 following major failure in 2021

Sheet Public Liasion
A1: =+'Cover Page'!$B$29 -> Annual Performance Report 2021 | E1: =+'Cover Page'!$B$33 -> SUEZ R&R UK LTD SUEZ R&R Tees Valley – Energy from Waste Facility Tees Valley – Energy from Waste Facility
A3: Details of Public & Stakeholder Liasion
A5: Summary of events held during the reporting year.
A6: Date | C6: Description
A7: Monthly | C7: STV Lines 1&2 - Cleveland Joint Waste Authority Contract Meetings
C9: STV Lines 1&2 Board Meeting
A11: Monthly | C11: South Tyne and Wear - Monthly Client Liaison Meetings
C13: South Tyne and Wear - Annual Client health and Safety visit
A16: List of events planned for next year
A17: Date | C17: Description
A18: Monthly | C18: STV Lines 1&2 - Cleveland Joint Waste Authority Contract Meetings
A20: Six monthly – dates still to be agreed | C20: STV Lines 1&2 Board Meeting
A22: Monthly | C22: South Tyne and Wear - Monthly Client Liaison Meetings
A24: Quarter 4 – date still to be agreed | C24: South Tyne and Wear - Annual Client health and Safety visit
A29: If you wish to be involved in the public liasion programme, please contact _________________
C39: 2021

Sheet Residue Quality
A1: =+'Cover Page'!$B$29 -> Annual Performance Report 2021 | E1: =+'Cover Page'!$B$33 -> SUEZ R&R UK LTD SUEZ R&R Tees Valley – Energy from Waste Facility Tees Valley – Energy from Waste Facility
A3: Residue Quality Monitoring Requirements
A5: Summary of monitoring undertaken and compliance
A6: Quarterly IBA and APCR samples are taken on Lines 1-5
A8: Weekly hazard assessments are carried out on Lines 1-5
A13: Commentary on any specific events
A14: Date & Event | C14: Description
A27: Residue Quality Monitoring Results
A28: Parameter (unit) | C28: Limit | D28: Normal Operation
D29: Bottom ash | F29: APC Residues
A30: Loss on Ignition (%) | C30: <5% | D30: -
A31: ToC (%) | C31: <3% | D31: STV 1&2 - 0.90 STV 3 -0.94 STV 4&5 - 1.28
A32: No. of Assessments Undertaken | C32: --- | D32: 3 per quarter Lines 1&2, Line 3, Lines 4&5
A33: No. of Hazardous Assessments | C33: --- | D33: Weekly hazard assessments unless Plant is on outage
A35: Comments :
A36: Quarterly samples are taken for 3 lines none of the samples results for TOC were above 3%

Sheet Water
A1: =+'Cover Page'!$B$29 -> Annual Performance Report 2021 | E1: =+'Cover Page'!$B$33 -> SUEZ R&R UK LTD SUEZ R&R Tees Valley – Energy from Waste Facility Tees Valley – Energy from Waste Facility
A3: Emissions to Water
A5: Summary of monitoring undertaken and compliance
A6: A permit requirement is for Suspended Solids at the Haverton Hill facility. These samples are taken on a monthly basis
A13: Commentary on any specific events
A14: Date & Event | C14: Description
A22: Emissions to Water / Sewer
A23: Parameter | D23: Monitoring Frequency | G23: Limit | H23: Target | I23: Max. | J23: Average
A24: Suspended Solids | D24: Monthly | G24: 50mg/m3 | H24: 50mg/m3 | I24: 45 | J24: 11.3
C39: 2021

Sheet Air (periodic)
A1: =+'Cover Page'!$B$29 -> Annual Performance Report 2021 | E1: =+'Cover Page'!$B$33 -> SUEZ R&R UK LTD SUEZ R&R Tees Valley – Energy from Waste Facility Tees Valley – Energy from Waste Facility
A3: Emissions to Air (periodically monitored)
A5: Summary of monitoring undertaken, standards used and compliance | M5: Notes:
A6: Monitoring carried out 6 monthly | M6: Template may require adjustment for any bespoke monitoring requirements of permit.
A9: Results of emissions to air that are periodically monitored
A10: Substance | C10: Ref. Period | D10: Emission Limit Value | F10: Average | M10: User to add additional tables as necessary, depending on whether quarterly or bi-annual reporting is required for the compliance year
F11: A1 | G11: A2 | H11: A3 | I11: A4 | J11: A5
A12: Hydrogen fluoride | C12: 1 hr | D12: 2 mg/m3 | F12: 0.062 | G12: 0.0625 | H12: 0.0605 | I12: 0.0625 | J12: 0.056
A13: Cd and Th and their compounds | C13: 6-8hrs | D13: 0.05 mg/m3 | F13: 0.002985 | G13: 0.00115 | H13: 0.00435 | I13: 0.00111 | J13: 0.001225
A14: Hg and its compounds | C14: 6-8hrs | D14: 0.05 mg/m3 | F14: 0.02005 | G14: 0.001215 | H14: 0.00077 | I14: 0.00092 | J14: 0.000915
A15: Sb, As, Pb, Cr, Co, Cu, Mn, Ni, V and their compounds | C15: 6-8hrs | D15: 0.5 mg/m3 | F15: 0.0205 | G15: 0.032 | H15: 0.057 | I15: 0.277 | J15: 0.0245
A16: Dioxins & Furans (I-TEQ) | C16: 6-8hrs | D16: 0.1 ng/m3 | F16: 0.001155 | G16: 0.0021 | H16: 0.00205 | I16: 0.0019 | J16: 0.00286
A17: PCBs (WHO-TEQ Humans / Mammals) | C17: 6-8hrs | D17: None set ng/m3 | F17: 0.0002 | G17: 0.000205 | H17: 0.000201 | I17: 7.4e-05 | J17: 0.0002165
A18: PCBs (WHO-TEQ Fish) | C18: 6-8hrs | D18: None set ng/m3 | F18: 9.65e-06 | G18: 1.065e-05 | H18: 1.09e-05 | I18: 4.15e-06 | J18: 1.1e-05
A19: PCBs (WHO-TEQ Birds) | C19: 6-8hrs | D19: None set ng/m3 | F19: 0.000615 | G19: 0.004205 | H19: 0.00068 | I19: 0.00042 | J19: 0.000585
A20: Dioxins & Furans (WHO-TEQ Humans / Mammals) | C20: 6-8hrs | D20: None set ng/m3 | F20: 0.00116 | G20: 0.002 | H20: 0.00205 | I20: 0.00185 | J20: 0.002846
A21: Dioxins & Furans (WHO-TEQ Fish) | C21: 6-8hrs | D21: None set ng/m3 | F21: 0.001155 | G21: 0.00225 | H21: 0.00225 | I21: 0.002 | J21: 0.00313
A22: Dioxins & Furans (WHO-TEQ Birds) | C22: 6-8hrs | D22: None set ng/m3 | F22: 0.00185 | G22: 0.00325 | H22: 0.00385 | I22: 0.00365 | J22: 0.0056
A23: Anthanthrene | C23: 6-8hrs | D23: None set µg/m3 | F23: 0.0021 | G23: 0.0019 | H23: 0.0017 | I23: 0.00135 | J23: 0.00145
A24: Benzo(a)anthracene | C24: 6-8hrs | D24: None set µg/m3 | F24: 0.0021 | G24: 0.0019 | H24: 0.0017 | I24: 0.00265 | J24: 0.00165
A25: Benzo(a)pyrene | C25: 6-8hrs | D25: None set µg/m3 | F25: 0.0021 | G25: 0.0019 | H25: 0.0017 | I25: 0.00125 | J25: 0.00145
A26: Benzo(b)fluoranthene | C26: 6-8hrs | D26: None set µg/m3 | F26: 0.0021 | G26: 0.0019 | H26: 0.0017 | I26: 0.00175 | J26: 0.0037
A27: Benzo(b)naptho(2,1-d) thiophene | C27: 6-8hrs | D27: None set µg/m3 | F27: 0.0021 | G27: 0.0023 | H27: 0.00175 | I27: 0.00225 | J27: 0.0052
A28: Benzo(c)phenanthrene | C28: 6-8hrs | D28: None set µg/m3 | F28: 0.0021 | G28: 0.0019 | H28: 0.0017 | I28: 0.00135 | J28: 0.0015
A29: Benzo(ghi)perylene | C29: 6-8hrs | D29: None set µg/m3 | F29: 0.0021 | G29: 0.0019 | H29: 0.0017 | I29: 0.00135 | J29: 0.00145
A30: Benzo(k)fluoranthene | C30: 6-8hrs | D30: None set µg/m3 | F30: 21 | G30: 0.0019 | H30: 0.0017 | I30: 0.00135 | J30: 0.00145
A31: Cholanthrene | C31: 6-8hrs | D31: None set µg/m3 | F31: 0.0021 | G31: 0.0019 | H31: 0.0017 | I31: 0.00135 | J31: 0.00145
A32: Chrysene | C32: 6-8hrs | D32: None set µg/m3 | F32: 0.00325 | G32: 0.0031 | H32: 0.00325 | I32: 0.00305 | J32: 0.0027
A33: Cyclopenta(cd)pyrene | C33: 6-8hrs | D33: None set µg/m3 | F33: 0.0021 | G33: 0.0019 | H33: 0.0017 | I33: 0.0024 | J33: 0.00145
A34: Dibenzo(ai)pyrene | C34: 6-8hrs | D34: None set µg/m3 | F34: 0.0021 | G34: 0.0019 | H34: 0.0017 | I34: 0.00135 | J34: 0.00145
A35: Dibenzo(ah)anthracene | C35: 6-8hrs | D35: None set µg/m3 | F35: 0.0021 | G35: 0.0019 | H35: 0.0017 | I35: 0.00135 | J35: 0.00145
A36: Fluoranthene | C36: 6-8hrs | D36: None set µg/m3 | F36: 0.02 | G36: 0.01 | H36: 0.01335 | I36: 0.0305 | J36: 0.057
A37: Indeno(123-cd) pyrene | C37: 6-8hrs | D37: None set µg/m3 | F37: 0.0021 | G37: 0.0019 | H37: 0.0017 | I37: 0.00135 | J37: 0.00145
A38: Naphthalene | C38: 6-8hrs | D38: None set µg/m3 | F38: 0.15 | G38: 0.165 | H38: 0.11 | I38: 0.1185 | J38: 0.1195
A39: Comments :

Sheet Air (CEMS)
A1: =+'Cover Page'!$B$29 -> Annual Performance Report 2021 | I1: =+'Cover Page'!$B$33 -> SUEZ R&R UK LTD SUEZ R&R Tees Valley – Energy from Waste Facility Tees Valley – Energy from Waste Facility
A3: Emissions to Air (continously monitored)
P4: Notes:
A5: Summary of monitoring undertaken, standards used and compliance | P5: Template may require adjustment for any bespoke monitoring requirements of permit
A6: Continuous monitoring
A11: Results of emissions to air that are continuously monitored
A12: Substance | B12: Reference Period | C12: Emission Limit Value | D12: A1 | F12: A2 | H12: A3 | J12: A4 | L12: A5
D13: Max. | E13: Avg. | F13: Max. | G13: Avg. | H13: Max. | I13: Avg. | J13: Max. | K13: Avg. | L13: Max. | M13: Avg.
A14: Oxides of nitrogen | B14: Daily mean | C14: 200 mg/m3 | D14: =NOx!$O$19 -> 146 | E14: =NOx!$N$19 -> 95.05 | F14: =NOx!$O$34 -> 181 | G14: =NOx!$N$34 -> 130.825 | H14: =NOx!$O$49 -> 166 | I14: =NOx!$N$49 -> 152.9 | J14: =NOx!$O$64 -> 191 | K14: =NOx!$N$64 -> 190 | L14: =NOx!$O$79 -> 191 | M14: =NOx!$N$79 -> 190
B15: ½ hourly mean | C15: 400 mg/m3 | D15: =NOx!$M$19 -> 234 | E15: =NOx!$L$19 -> 95.01666667 | F15: =NOx!$M$34 -> 309 | G15: =NOx!$L$34 -> 150.6666667 | H15: =NOx!$M$49 -> 312 | I15: =NOx!$L$49 -> 152.9833333 | J15: =NOx!$M$64 -> 234 | K15: =NOx!$L$64 -> 332.6666667 | L15: =NOx!$M$79 -> 225 | M15: =NOx!$L$79 -> 190
A16: Particulates | B16: Daily mean | C16: 10 mg/m3 | D16: =Particulates!$O$19 -> 9 | E16: =Particulates!$N$19 -> 1.358333333 | F16: =Particulates!$O$34 -> 1.9 | G16: =Particulates!$N$34 -> 0.9583333333 | H16: =Particulates!$O$49 -> 6.1 | I16: =Particulates!$N$49 -> 1.466666667 | J16: =Particulates!$O$64 -> 2.4 | K16: =Particulates!$N$64 -> 0.7583333333 | L16: =Particulates!$O$79 -> 1.7 | M16: =Particulates!$N$79 -> 0.7416666667
B17: ½ hourly mean | C17: 30 mg/m3 | D17: =Particulates!$M$19 -> 10.6 | E17: =Particulates!$L$19 -> 1.358333333 | F17: =Particulates!$M$34 -> 6 | G17: =Particulates!$L$34 -> 0.9583333333 | H17: =Particulates!$M$49 -> 28.4 | I17: =Particulates!$L$49 -> 1.446666667 | J17: =Particulates!$M$64 -> 13.2 | K17: =Particulates!$L$64 -> 0.7583333333 | L17: =Particulates!$M$79 -> 3.4 | M17: =Particulates!$L$79 -> 0.7416666667
A18: Total Organic Carbon | B18: Daily mean | C18: 10 mg/m3 | D18: =TOC!$O$19 -> 2.2 | E18: =TOC!$N$19 -> 0.425 | F18: =TOC!$O$34 -> 7 | G18: =TOC!$N$34 -> 0.8 | H18: =TOC!$O$49 -> 1.1 | I18: =TOC!$N$49 -> 0.3583333333 | J18: =TOC!$O$64 -> 0.8 | K18: =TOC!$N$64 -> 0.1 | L18: =TOC!$O$79 -> 0.5 | M18: =TOC!$N$79 -> 0.2
B19: ½ hourly mean | C19: 20 mg/m3 | D19: =TOC!$M$19 -> 37.2 | E19: =TOC!$L$19 -> 0.425 | F19: =TOC!$M$34 -> 70 | G19: =TOC!$L$34 -> 0.7916666667 | H19: =TOC!$M$49 -> 69.8 | I19: =TOC!$L$49 -> 0.3583333333 | J19: =TOC!$M$64 -> 15.6 | K19: =TOC!$L$64 -> 0.1 | L19: =TOC!$M$79 -> 15 | M19: =TOC!$L$79 -> 0.2
A20: Hydrogen chloride | B20: Daily mean | C20: 10 mg/m3 | D20: =HCl!$O$19 -> 4.8 | E20: =HCl!$N$19 -> 3.575 | F20: =HCl!$O$34 -> 68 | G20: =HCl!$N$34 -> 1.966666667 | H20: =HCl!$O$49 -> 5.6 | I20: =HCl!$N$49 -> 4.366666667 | J20: =HCl!$O$64 -> 1.8 | K20: =HCl!$N$64 -> 1.166666667 | L20: =HCl!$O$79 -> 3.1 | M20: =HCl!$N$79 -> 1.283333333
B21: ½ hourly mean | C21: 60 mg/m3 | D21: =HCl!$M$19 -> 31.1 | E21: =HCl!$L$19 -> 2.066666667 | F21: =HCl!$M$34 -> 59 | G21: =HCl!$L$34 -> 1.966666667 | H21: =HCl!$M$49 -> 205 | I21: =HCl!$L$49 -> 4.375 | J21: =HCl!$M$64 -> 6.9 | K21: =HCl!$L$64 -> 1.166666667 | L21: =HCl!$M$79 -> 12.2 | M21: =HCl!$L$79 -> 1.283333333
A22: Sulphur dioxide | B22: Daily mean | C22: 50 mg/m3 | D22: ='SO2'!$O$19 -> 34.7 | E22: ='SO2'!$N$19 -> 18.84166667 | F22: ='SO2'!$O$34 -> 41 | G22: ='SO2'!$N$34 -> 19.30833333 | H22: ='SO2'!$O$49 -> 27.4 | I22: ='SO2'!$N$49 -> 9.541666667 | J22: ='SO2'!$O$64 -> 35 | K22: ='SO2'!$N$64 -> 20.26666667 | L22: ='SO2'!$O$79 -> 37 | M22: ='SO2'!$N$79 -> 19.25
B23: ½ hourly mean | C23: 200 mg/m3 | D23: ='SO2'!$M$19 -> 248 | E23: ='SO2'!$L$19 -> 18.84166667 | F23: ='SO2'!$M$34 -> 166 | G23: ='SO2'!$L$34 -> 19.30833333 | H23: ='SO2'!$M$49 -> 176 | I23: ='SO2'!$L$49 -> 9.541666667 | J23: ='SO2'!$M$64 -> 105 | K23: ='SO2'!$L$64 -> 20.26666667 | L23: ='SO2'!$M$79 -> 100 | M23: ='SO2'!$L$79 -> 19.25
A24: Carbon monoxide | B24: Daily mean | C24: 50 mg/m3 | D24: ='CO 95% 10 min'!Q19 -> 17.8 | E24: ='CO 95% 10 min'!P19 -> 4.45 | F24: ='CO 95% 10 min'!Q34 -> 33.2 | G24: ='CO 95% 10 min'!P34 -> 7.291666667 | H24: ='CO 95% 10 min'!Q49 -> 42 | I24: ='CO 95% 10 min'!P49 -> 3.75 | J24: ='CO 95% 10 min'!Q64 -> 32.2 | K24: ='CO 95% 10 min'!P64 -> 6.066666667 | L24: ='CO 95% 10 min'!Q79 -> 19.3 | M24: ='CO 95% 10 min'!P79 -> 6.325
B25: ½ hourly mean * | C25: 100 mg/m3 *
B26: 95%ile 10-min avg * | C26: 150 mg/m3 * | D26: ='CO 95% 10 min'!M19 -> 16.35 | F26: ='CO 95% 10 min'!M34 -> 18.85833333 | H26: ='CO 95% 10 min'!M49 -> 12.29166667 | J26: ='CO 95% 10 min'!M64 -> 6.258333333 | L26: ='CO 95% 10 min'!M79 -> 8.041666667
A27: Ammonia | B27: Daily mean | C27: No limit set | D27: ='NH3'!$O$19 -> 34.3 | E27: ='NH3'!$N$19 -> 4.316666667 | F27: ='NH3'!$O$34 -> 19.7 | G27: ='NH3'!$N$34 -> 3.516666667 | H27: ='NH3'!$O$49 -> 12.3 | I27: ='NH3'!$N$49 -> 2.091666667 | J27: ='NH3'!$O$64 -> 5.02 | K27: ='NH3'!$N$64 -> 0.4483333333 | L27: ='NH3'!$O$79 -> 4.1 | M27: ='NH3'!$N$79 -> 1.7425
A28: * = delete or amend as appropriate
A29: Comments : | B29: Annual Performance Report 2021
C39: 2021

Sheet HCl
A1: =+'Cover Page'!$B$29 -> Annual Performance Report 2021 | E1: =+'Cover Page'!$B$33 -> SUEZ R&R UK LTD SUEZ R&R Tees Valley – Energy from Waste Facility Tees Valley – Energy from Waste Facility
A3: Monitoring of Hydrogen Chloride emissions | D3: Whole Installation | G3: See Notes in Cell Q3 | J3: =+A3 -> Monitoring of Hydrogen Chloride emissions | N3: Per Combustion Line | Q3: Notes:
Q4: User to add logic to complete Whole installation, Table A5:G18. From the data in Per Combustion Line, Table J6:O79, subject to No. of lines installed
A5: mg/Nm3 | B5: 1/2 Hourly Reference Periods | E5: Daily Reference Periods
A6: =+'Cover Page'!C39 -> 2021 | B6: 1/2 hourly HCl ELV | C6: Monthly 1/2 hourly mean | D6: Highest 1/2 hourly maximum | E6: Daily HCl ELV | F6: Monthly daily mean | G6: Highest daily maximum | J6: =+A6 -> 2021 | K6: mg/Nm3 | L6: Monthly 1/2 hourly mean | M6: Monthly 1/2 hourly maximum | N6: Monthly daily mean | O6: Monthly daily maximum
A7: Jan | B7: 60 | C7: =AVERAGE(L7,L22,L37,L52,L67) -> 1.66 | D7: =MAX(M7,M22,M37,M52,M67) -> 31.1 | E7: 10 | F7: =AVERAGE(N7,N22,N37,N52,N67) -> 1.66 | G7: =MAX(O7,O22,O37,O52,O67) -> 4.8 | J7: A1 | K7: Jan | L7: 2.1 | M7: 31.1 | N7: 2.1 | O7: 4.8
A8: Feb | B8: 60 | C8: =AVERAGE(L8,L23,L38,L53,L68) -> 1.7 | D8: =MAX(M8,M23,M38,M53,M68) -> 18.2 | E8: 10 | F8: =AVERAGE(N8,N23,N38,N53,N68) -> 1.7 | G8: =MAX(O8,O23,O38,O53,O68) -> 9.9 | K8: Feb | L8: 2.1 | M8: 14.7 | N8: 2.1 | O8: 3.8
A9: Mar | B9: 60 | C9: =AVERAGE(L9,L24,L39,L54,L69) -> 1.92 | D9: 31.3 | E9: 10 | F9: 1.92 | G9: 3.8 | K9: Mar | L9: 2.4 | M9: 5.7 | N9: 2.4 | O9: 3.5 | Q9: Whole Installation table A5:G18:
A10: Apr | B10: 60 | C10: =AVERAGE(L10,L25,L40,L55,L70) -> 2.28 | D10: 63 | E10: 10 | F10: 2.28 | G10: 5.6 | K10: Apr | L10: 2.8 | M10: 23 | N10: 2.8 | O10: 3.8 | Q10: Mean: for 1/2 hourly and daily periods calculate mean of values across all operational combustion lines for the month
A11: May | B11: 60 | C11: 1.94 | D11: 58 | E11: 10 | F11: 1.94 | G11: 5.8 | K11: May | L11: 1.9 | M11: 4.9 | N11: 1.9 | O11: 2.8
A12: Jun | B12: 60 | C12: 1.78 | D12: 16.3 | E12: 10 | F12: 1.78 | G12: 4.5 | K12: Jun | L12: 2 | M12: 12 | N12: 2 | O12: 3.9
A13: Jul | B13: 60 | C13: 6.32 | D13: 205 | E13: 10 | F13: 6.3 | G13: 5.1 | K13: Jul | L13: 2 | M13: 5.2 | N13: 2 | O13: 2.7 | Q13: Maximum: for 1/2 hourly and daily periods use the highest value across all operational combustion lines for the month
A14: Aug | B14: 60 | C14: 1.64 | D14: 30.2 | E14: 10 | F14: 1.66 | G14: 3.7 | K14: Aug | L14: 2 | M14: 30.2 | N14: 2.1 | O14: 3.3
A15: Sep | B15: 60 | C15: 1.86 | D15: 30 | E15: 10 | F15: 1.86 | G15: 4.5 | K15: Sep | L15: 2 | M15: 12.4 | N15: 2 | O15: 3.4
A16: Oct | B16: 60 | C16: 1.54 | D16: 5.8 | E16: 10 | F16: 5.14 | G16: 3.8 | K16: Oct | L16: 2.1 | M16: 4.9 | N16: 20.1 | O16: 3
A17: Nov | B17: 60 | C17: =AVERAGE(L17,#REF!,L47,L62,L77) ->  | D17: =MAX(M17,#REF!,M47,M62,M77) ->  | E17: 10 | F17: =AVERAGE(N17,#REF!,N47,N62,N77) ->  | G17: =MAX(O17,#REF!,O47,O62,O77) ->  | K17: Nov | L17: 1.7 | M17: 2.5 | N17: 1.7 | O17: 1.9
A18: Dec | B18: 60 | C18: 1.82 | D18: 59 | E18: 10 | F18: 1.82 | G18: 68 | K18: Dec | L18: 1.7 | M18: 30.6 | N18: 1.7 | O18: 3.5
K19: Annual | L19: =AVERAGE(L7:L18) -> 2.066666667 | M19: =MAX(M7:M18) -> 31.1 | N19: =AVERAGE(N7:N18) -> 3.575 | O19: =MAX(O7:O18) -> 4.8
J21: =+A6 -> 2021 | K21: mg/Nm3 | L21: Monthly 1/2 hourly mean | M21: Monthly 1/2 hourly maximum | N21: Monthly daily mean | O21: Monthly daily maximum
J22: A2 | K22: Jan | L22: 2 | M22: 12.8 | N22: 2 | O22: 3.4
K23: Feb | L23: 2.5 | M23: 18.2 | N23: 2.5 | O23: 9.9
K24: Mar | L24: 2.4 | M24: 7.7 | N24: 2.4 | O24: 3.8
K25: Apr | L25: 2.4 | M25: 29.5 | N25: 2.4 | O25: 4.1
K26: May | L26: 1.8 | M26: 58 | N26: 1.8 | O26: 5.8
K27: Jun | L27: 1.9 | M27: 16.3 | N27: 1.9 | O27: 3
K28: Jul | L28: 1.3 | M28: 4.8 | N28: 1.3 | O28: 2.3
B29: Annual Performance Report 2021 | K29: Aug | L29: 1.2 | M29: 10.2 | N29: 1.2 | O29: 2
K30: Sep | L30: 2.1 | M30: 30 | N30: 2.1 | O30: 4.5
K31: Oct | L31: 1.4 | M31: 5.4 | N31: 1.4 | O31: 2.6
K32: Nov | L32: 1.9 | M32: 14.9 | N32: 1.9 | O32: 4.9
K33: Dec | L33: 2.7 | M33: 59 | N33: 2.7 | O33: 68
K34: Annual | L34: =AVERAGE(L22:L33) -> 1.966666667 | M34: =MAX(M22:M33) -> 59 | N34: =AVERAGE(N22:N33) -> 1.966666667 | O34: =MAX(O22:O33) -> 68
J36: =+A6 -> 2021 | K36: mg/Nm3 | L36: Monthly 1/2 hourly mean | M36: Monthly 1/2 hourly maximum | N36: Monthly daily mean | O36: Monthly daily maximum
J37: A3 | K37: Jan | L37: 2.4 | M37: 21.7 | N37: 2.4 | O37: 3.9
K38: Feb | L38: 1.7 | M38: 7.4 | N38: 1.7 | O38: 3.6
C39: 2021 | K39: Mar | L39: 2.1 | M39: 31.3 | N39: 2.1 | O39: 3.5
K40: Apr | L40: 3.3 | M40: 63 | N40: 3.3 | O40: 5.6
K41: May | L41: 3.6 | M41: 9.4 | N41: 3.6 | O41: 5.2
K42: Jun | L42: 2.9 | M42: 11 | N42: 2.9 | O42: 4.5
K43: Jul | L43: 25.1 | M43: 205 | N43: 25 | O43: 5.1
K44: Aug | L44: 2.3 | M44: 7.4 | N44: 2.3 | O44: 3.7
K45: Sep | L45: 2.8 | M45: 7.6 | N45: 2.8 | O45: 4.4
K46: Oct | L46: 1.9 | M46: 5.8 | N46: 1.9 | O46: 3.8
K47: Nov | L47: 2 | M47: 10.4 | N47: 2 | O47: 3.7
A48: Comments : | K48: Dec | L48: 2.4 | M48: 9.5 | N48: 2.4 | O48: 4.6
K49: Annual | L49: =AVERAGE(L37:L48) -> 4.375 | M49: =MAX(M37:M48) -> 205 | N49: =AVERAGE(N37:N48) -> 4.366666667 | O49: =MAX(O37:O48) -> 5.6
J51: =+A6 -> 2021 | K51: mg/Nm3 | L51: Monthly 1/2 hourly mean | M51: Monthly 1/2 hourly maximum | N51: Monthly daily mean | O51: Monthly daily maximum
J52: A4 | K52: Jan | L52: 1 | M52: 3.2 | N52: 1 | O52: 1.5
K53: Feb | L53: 1.1 | M53: 2.8 | N53: 1.1 | O53: 1.4
K54: Mar | L54: 1.2 | M54: 3.4 | N54: 1.2 | O54: 1.7
K55: Apr | L55: 1.4 | M55: 3 | N55: 1.4 | O55: 1.7
K56: May | L56: 1.2 | M56: 2.6 | N56: 1.2 | O56: 1.8
K57: Jun | L57: 0.9 | M57: 3 | N57: 0.9 | O57: 1.5
K58: Jul | L58: 1.5 | M58: 5.3 | N58: 1.5 | O58: 1.8
K59: Aug | L59: 1.3 | M59: 3.4 | N59: 1.3 | O59: 1.7
K60: Sep | L60: 1.2 | M60: 3 | N60: 1.2 | O60: 1.5
K61: Oct | L61: 1 | M61: 3.7 | N61: 1 | O61: 1.5
K62: Nov | L62: 1.1 | M62: 6.9 | N62: 1.1 | O62: 1.7
K63: Dec | L63: 1.1 | M63: 3 | N63: 1.1 | O63: 1.4
K64: Annual | L64: =AVERAGE(L52:L63) -> 1.166666667 | M64: =MAX(M52:M63) -> 6.9 | N64: =AVERAGE(N52:N63) -> 1.166666667 | O64: =MAX(O52:O63) -> 1.8
J66: =+A6 -> 2021 | K66: mg/Nm3 | L66: Monthly 1/2 hourly mean | M66: Monthly 1/2 hourly maximum | N66: Monthly daily mean | O66: Monthly daily maximum
J67: A5 | K67: Jan | L67: 0.8 | M67: 2.8 | N67: 0.8 | O67: 1
K68: Feb | L68: 1.1 | M68: 3 | N68: 1.1 | O68: 1.5
K69: Mar | L69: 1.5 | M69: 9.2 | N69: 1.5 | O69: 2.4
K70: Apr | L70: 1.5 | M70: 12.2 | N70: 1.5 | O70: 2
K71: May | L71: 1.2 | M71: 4.8 | N71: 1.2 | O71: 1.9
K72: Jun | L72: 1.2 | M72: 6.2 | N72: 1.2 | O72: 3.1
K73: Jul | L73: 1.7 | M73: 4.2 | N73: 1.7 | O73: 2.3
K74: Aug | L74: 1.4 | M74: 3.5 | N74: 1.4 | O74: 2.1
K75: Sep | L75: 1.2 | M75: 4.3 | N75: 1.2 | O75: 2.1
K76: Oct | L76: 1.3 | M76: 3.3 | N76: 1.3 | O76: 1.8
K77: Nov | L77: 1.3 | M77: 4.5 | N77: 1.3 | O77: 2.1
K78: Dec | L78: 1.2 | M78: 3.1 | N78: 1.2 | O78: 1.7
K79: Annual | L79: =AVERAGE(L67:L78) -> 1.283333333 | M79: =MAX(M67:M78) -> 12.2 | N79: =AVERAGE(N67:N78) -> 1.283333333 | O79: =MAX(O67:O78) -> 3.1

Sheet SO2
A1: =+'Cover Page'!$B$29 -> Annual Performance Report 2021 | E1: =+'Cover Page'!$B$33 -> SUEZ R&R UK LTD SUEZ R&R Tees Valley – Energy from Waste Facility Tees Valley – Energy from Waste Facility
A3: Monitoring of Sulphur dioxide emissions | D3: Whole Installation | G3: See Notes in Cell Q3 | J3: =+A3 -> Monitoring of Sulphur dioxide emissions | N3: Per Combustion Line | Q3: Notes:
Q4: User to add logic to complete Whole installation, Table A5:G18. From the data in Per Combustion Line, Table J6:O79, subject to No. of lines installed
A5: mg/Nm3 | B5: 1/2 Hourly Reference Periods | E5: Daily Reference Periods
A6: =+'Cover Page'!C39 -> 2021 | B6: 1/2 hourly SO2 ELV | C6: Monthly 1/2 hourly mean | D6: Highest 1/2 hourly maximum | E6: Daily SO2 ELV | F6: Monthly daily mean | G6: Highest daily maximum | J6: =+A6 -> 2021 | K6: mg/Nm3 | L6: Monthly 1/2 hourly mean | M6: Monthly 1/2 hourly maximum | N6: Monthly daily mean | O6: Monthly daily maximum
A7: Jan | B7: 200 | C7: =AVERAGE(L7,L22,L37,L52,L67) -> 12.06 | D7: =MAX(M7,M22,M37,M52,M67) -> 102 | E7: 50 | F7: =AVERAGE(N7,N22,N37,N52,N67) -> 12.06 | G7: =MAX(O7,O22,O37,O52,O67) -> 30 | J7: A1 | K7: Jan | L7: 12.2 | M7: 70.4 | N7: 12.2 | O7: 22.1
A8: Feb | B8: 200 | C8: =AVERAGE(L8,L23,L38,L53,L68) -> 18.92 | D8: =MAX(M8,M23,M38,M53,M68) -> 133 | E8: 50 | F8: =AVERAGE(N8,N23,N38,N53,N68) -> 18.92 | G8: =MAX(O8,O23,O38,O53,O68) -> 37 | K8: Feb | L8: 20.1 | M8: 104.2 | N8: 20.1 | O8: 30.7
A9: Mar | B9: 200 | C9: 20.72 | D9: 240 | E9: 50 | F9: 20.72 | G9: 35 | K9: Mar | L9: 21.5 | M9: 240 | N9: 21.5 | O9: 34.7 | Q9: Whole Installation table A5:G18:
A10: Apr | B10: 200 | C10: 20.18 | D10: 123 | E10: 50 | F10: 20.18 | G10: 35 | K10: Apr | L10: 19 | M10: 119 | N10: 19 | O10: 27 | Q10: Mean: for 1/2 hourly and daily periods calculate mean of values across all operational combustion lines for the month
A11: May | B11: 200 | C11: 17.02 | D11: 248 | E11: 50 | F11: 17.02 | G11: 34 | K11: May | L11: 16.3 | M11: 248 | N11: 16.3 | O11: 33
A12: Jun | B12: 200 | C12: 15.6 | D12: 95 | E12: 50 | F12: 15.6 | G12: 31.1 | K12: Jun | L12: 19.8 | M12: 68 | N12: 19.8 | O12: 31.1
A13: Jul | B13: 200 | C13: 13.82 | D13: 176 | E13: 50 | F13: 13.82 | G13: 36 | K13: Jul | L13: 12.2 | M13: 68 | N13: 12.2 | O13: 24.7 | Q13: Maximum: for 1/2 hourly and daily periods use the highest value across all operational combustion lines for the month
A14: Aug | B14: 200 | C14: 16.32 | D14: 131 | E14: 50 | F14: 16.32 | G14: 37 | K14: Aug | L14: 14.5 | M14: 131 | N14: 14.5 | O14: 25
A15: Sep | B15: 200 | C15: 15.1 | D15: 166 | E15: 50 | F15: 15.1 | G15: 29 | K15: Sep | L15: 14 | M15: 86 | N15: 14 | O15: 29
A16: Oct | B16: 200 | C16: 15.02 | D16: 80 | E16: 50 | F16: 15.02 | G16: 33 | K16: Oct | L16: 12.8 | M16: 63.2 | N16: 12.8 | O16: 26.3
A17: Nov | B17: 200 | C17: 24.58 | D17: 188 | E17: 50 | F17: 24.58 | G17: 40 | K17: Nov | L17: 33.7 | M17: 188 | N17: 33.7 | O17: 4.5
A18: Dec | B18: 200 | C18: 19.96 | D18: 145 | E18: 50 | F18: 19.96 | G18: 41 | K18: Dec | L18: 30 | M18: 145 | N18: 30 | O18: 0
K19: Annual | L19: =AVERAGE(L7:L18) -> 18.84166667 | M19: =MAX(M7:M18) -> 248 | N19: =AVERAGE(N7:N18) -> 18.84166667 | O19: =MAX(O7:O18) -> 34.7
J21: =+A6 -> 2021 | K21: mg/Nm3 | L21: Monthly 1/2 hourly mean | M21: Monthly 1/2 hourly maximum | N21: Monthly daily mean | O21: Monthly daily maximum
J22: A2 | K22: Jan | L22: 15 | M22: 80.5 | N22: 15 | O22: 22
K23: Feb | L23: 26 | M23: 133 | N23: 26 | O23: 37
K24: Mar | L24: 26 | M24: 93 | N24: 26 | O24: 34.4
K25: Apr | L25: 21 | M25: 123 | N25: 21 | O25: 35
K26: May | L26: 20.5 | M26: 137 | N26: 20.5 | O26: 32
K27: Jun | L27: 16.5 | M27: 71 | N27: 16.5 | O27: 22
K28: Jul | L28: 12.7 | M28: 57.5 | N28: 12.7 | O28: 19.8
B29: Annual Performance Report 2021 | K29: Aug | L29: 11.6 | M29: 94 | N29: 11.6 | O29: 16
K30: Sep | L30: 13.5 | M30: 166 | N30: 13.5 | O30: 22
K31: Oct | L31: 13.9 | M31: 55.6 | N31: 13.9 | O31: 24.1
K32: Nov | L32: 34 | M32: 164 | N32: 34 | O32: 40
K33: Dec | L33: 21 | M33: 125 | N33: 21 | O33: 41
K34: Annual | L34: =AVERAGE(L22:L33) -> 19.30833333 | M34: =MAX(M22:M33) -> 166 | N34: =AVERAGE(N22:N33) -> 19.30833333 | O34: =MAX(O22:O33) -> 41
J36: =+A6 -> 2021 | K36: mg/Nm3 | L36: Monthly 1/2 hourly mean | M36: Monthly 1/2 hourly maximum | N36: Monthly daily mean | O36: Monthly daily maximum
J37: A3 | K37: Jan | L37: 5.6 | M37: 102 | N37: 5.6 | O37: 19.6
K38: Feb | L38: 8.5 | M38: 76.2 | N38: 8.5 | O38: 20.5
C39: 2021 | K39: Mar | L39: 9.1 | M39: 171 | N39: 9.1 | O39: 18.6
K40: Apr | L40: 6.6 | M40: 96 | N40: 6.6 | O40: 17
K41: May | L41: 6.3 | M41: 53.4 | N41: 6.3 | O41: 12.8
K42: Jun | L42: 11 | M42: 95 | N42: 11 | O42: 23
K43: Jul | L43: 10.2 | M43: 176 | N43: 10.2 | O43: 23.3
K44: Aug | L44: 10.3 | M44: 61 | N44: 10.3 | O44: 25.5
K45: Sep | L45: 11 | M45: 86 | N45: 11 | O45: 19
K46: Oct | L46: 11.4 | M46: 80 | N46: 11.4 | O46: 27.4
K47: Nov | L47: 13.7 | M47: 78.5 | N47: 13.7 | O47: 27
A48: Comments : | K48: Dec | L48: 10.8 | M48: 81.5 | N48: 10.8 | O48: 25
K49: Annual | L49: =AVERAGE(L37:L48) -> 9.541666667 | M49: =MAX(M37:M48) -> 176 | N49: =AVERAGE(N37:N48) -> 9.541666667 | O49: =MAX(O37:O48) -> 27.4
J51: =+A6 -> 2021 | K51: mg/Nm3 | L51: Monthly 1/2 hourly mean | M51: Monthly 1/2 hourly maximum | N51: Monthly daily mean | O51: Monthly daily maximum
J52: A4 | K52: Jan | L52: 16.5 | M52: 61.3 | N52: 16.5 | O52: 30
K53: Feb | L53: 23 | M53: 74.5 | N53: 23 | O53: 33
K54: Mar | L54: 24 | M54: 76 | N54: 24 | O54: 33
K55: Apr | L55: 28.3 | M55: 69.5 | N55: 28.3 | O55: 35
K56: May | L56: 24 | M56: 61.4 | N56: 24 | O56: 34
K57: Jun | L57: 16.7 | M57: 57.4 | N57: 16.7 | O57: 26.7
K58: Jul | L58: 11 | M58: 48 | N58: 11 | O58: 24
K59: Aug | L59: 22.2 | M59: 67 | N59: 22.2 | O59: 30
K60: Sep | L60: 20 | M60: 69 | N60: 20 | O60: 28
K61: Oct | L61: 18 | M61: 80 | N61: 18 | O61: 27
K62: Nov | L62: 20.5 | M62: 105 | N62: 20.5 | O62: 33
K63: Dec | L63: 19 | M63: 81 | N63: 19 | O63: 29
K64: Annual | L64: =AVERAGE(L52:L63) -> 20.26666667 | M64: =MAX(M52:M63) -> 105 | N64: =AVERAGE(N52:N63) -> 20.26666667 | O64: =MAX(O52:O63) -> 35
J66: =+A6 -> 2021 | K66: mg/Nm3 | L66: Monthly 1/2 hourly mean | M66: Monthly 1/2 hourly maximum | N66: Monthly daily mean | O66: Monthly daily maximum
J67: A5 | K67: Jan | L67: 11 | M67: 61 | N67: 11 | O67: 15
K68: Feb | L68: 17 | M68: 68 | N68: 17 | O68: 30
K69: Mar | L69: 23 | M69: 100 | N69: 23 | O69: 35
K70: Apr | L70: 26 | M70: 84 | N70: 26 | O70: 34
K71: May | L71: 18 | M71: 88 | N71: 18 | O71: 34
K72: Jun | L72: 14 | M72: 69 | N72: 14 | O72: 23
K73: Jul | L73: 23 | M73: 61 | N73: 23 | O73: 36
K74: Aug | L74: 23 | M74: 95 | N74: 23 | O74: 37
K75: Sep | L75: 17 | M75: 65 | N75: 17 | O75: 29
K76: Oct | L76: 19 | M76: 67 | N76: 19 | O76: 33
K77: Nov | L77: 21 | M77: 72 | N77: 21 | O77: 30.4
K78: Dec | L78: 19 | M78: 37 | N78: 19 | O78: 31
K79: Annual | L79: =AVERAGE(L67:L78) -> 19.25 | M79: =MAX(M67:M78) -> 100 | N79: =AVERAGE(N67:N78) -> 19.25 | O79: =MAX(O67:O78) -> 37

Sheet NOx
A1: =+'Cover Page'!$B$29 -> Annual Performance Report 2021 | E1: =+'Cover Page'!$B$33 -> SUEZ R&R UK LTD SUEZ R&R Tees Valley – Energy from Waste Facility Tees Valley – Energy from Waste Facility
A3: Monitoring of Oxides of Nitrogen emissions | D3: Whole Installation | G3: See Notes in Cell Q3 | J3: =+A3 -> Monitoring of Oxides of Nitrogen emissions | N3: Per Combustion Line | Q3: Notes:
Q4: User to add logic to complete Whole installation, Table A5:G18. From the data in Per Combustion Line, Table J6:O79, subject to No. of lines installed
A5: mg/Nm3 | B5: 1/2 Hourly Reference Periods | E5: Daily Reference Periods
A6: =+'Cover Page'!C39 -> 2021 | B6: 1/2 hourly NOx ELV | C6: Monthly 1/2 hourly mean | D6: Highest 1/2 hourly maximum | E6: Daily NOx ELV | F6: Monthly daily mean | G6: Highest daily maximum | J6: =+A6 -> 2021 | K6: mg/Nm3 | L6: Monthly 1/2 hourly mean | M6: Monthly 1/2 hourly maximum | N6: Monthly daily mean | O6: Monthly daily maximum
A7: Jan | B7: 400 | C7: =AVERAGE(L7,L22,L37,L52,L67) -> 160.16 | D7: =MAX(M7,M22,M37,M52,M67) -> 274 | E7: 200 | F7: =AVERAGE(N7,N22,N37,N52,N67) -> 160.06 | G7: =MAX(O7,O22,O37,O52,O67) -> 190 | J7: A1 | K7: Jan | L7: 120 | M7: 183.4 | N7: 120 | O7: 140
A8: Feb | B8: 400 | C8: =AVERAGE(L8,L23,L38,L53,L68) -> 152.28 | D8: =MAX(M8,M23,M38,M53,M68) -> 214 | E8: 200 | F8: =AVERAGE(N8,N23,N38,N53,N68) -> 152.18 | G8: =MAX(O8,O23,O38,O53,O68) -> 190 | K8: Feb | L8: 95.9 | M8: 151.4 | N8: 95.9 | O8: 124
A9: Mar | B9: 400 | C9: 157.06 | D9: 272.4 | E9: 200 | F9: 157.06 | G9: 190 | K9: Mar | L9: 107.8 | M9: 186.4 | N9: 107.8 | O9: 127.5 | Q9: Whole Installation table A5:G18:
A10: Apr | B10: 400 | C10: 155.18 | D10: 231 | E10: 200 | F10: 155.2 | G10: 191 | K10: Apr | L10: 100.9 | M10: 178 | N10: 101 | O10: 119 | Q10: Mean: for 1/2 hourly and daily periods calculate mean of values across all operational combustion lines for the month
A11: May | B11: 400 | C11: 148.4 | D11: 285 | E11: 200 | F11: 148.4 | G11: 190 | K11: May | L11: 91 | M11: 189 | N11: 91 | O11: 107
A12: Jun | B12: 400 | C12: 158.2 | D12: 246 | E12: 200 | F12: 158.2 | G12: 191 | K12: Jun | L12: 106 | M12: 202 | N12: 106 | O12: 146
A13: Jul | B13: 400 | C13: 153.74 | D13: 312 | E13: 200 | F13: 153.8 | G13: 191 | K13: Jul | L13: 90.7 | M13: 189 | N13: 91 | O13: 130 | Q13: Maximum: for 1/2 hourly and daily periods use the highest value across all operational combustion lines for the month
A14: Aug | B14: 400 | C14: 493.6 | D14: 275 | E14: 200 | F14: 151.2 | G14: 190 | K14: Aug | L14: 94 | M14: 234 | N14: 94 | O14: 135
A15: Sep | B15: 400 | C15: 152.2 | D15: 289 | E15: 200 | F15: 152.2 | G15: 190 | K15: Sep | L15: 91 | M15: 160 | N15: 91 | O15: 107
A16: Oct | B16: 400 | C16: 150 | D16: 309 | E16: 200 | F16: 150 | G16: 190 | K16: Oct | L16: 90 | M16: 165 | N16: 90 | O16: 104
A17: Nov | B17: 400 | C17: 183.38 | D17: 312 | E17: 200 | F17: 135.76 | G17: 191 | K17: Nov | L17: 70.9 | M17: 171 | N17: 70.9 | O17: 85.8
A18: Dec | B18: 400 | C18: 147 | D18: 277 | E18: 200 | F18: 147 | G18: 191 | K18: Dec | L18: 82 | M18: 169 | N18: 82 | O18: 108
K19: Annual | L19: =AVERAGE(L7:L18) -> 95.01666667 | M19: =MAX(M7:M18) -> 234 | N19: =AVERAGE(N7:N18) -> 95.05 | O19: =MAX(O7:O18) -> 146
J21: =+A6 -> 2021 | K21: mg/Nm3 | L21: Monthly 1/2 hourly mean | M21: Monthly 1/2 hourly maximum | N21: Monthly daily mean | O21: Monthly daily maximum
J22: A2 | K22: Jan | L22: 145 | M22: 252 | N22: 145 | O22: 175
K23: Feb | L23: 130 | M23: 193 | N23: 130 | O23: 145
K24: Mar | L24: 144 | M24: 272.4 | N24: 144 | O24: 151
K25: Apr | L25: 145 | M25: 231 | N25: 145 | O25: 157
K26: May | L26: 142 | M26: 285 | N26: 142 | O26: 147
K27: Jun | L27: 152 | M27: 217 | N27: 152 | O27: 181
K28: Jul | L28: 142 | M28: 281 | N28: 142 | O28: 169
B29: Annual Performance Report 2021 | K29: Aug | L29: 125 | M29: 275 | N29: 125 | O29: 167
K30: Sep | L30: 133 | M30: 289 | N30: 133 | O30: 158
K31: Oct | L31: 123 | M31: 309 | N31: 123 | O31: 155
K32: Nov | L32: 309 | M32: 171 | N32: 70.9 | O32: 85.5
K33: Dec | L33: 118 | M33: 277 | N33: 118 | O33: 180
K34: Annual | L34: =AVERAGE(L22:L33) -> 150.6666667 | M34: =MAX(M22:M33) -> 309 | N34: =AVERAGE(N22:N33) -> 130.825 | O34: =MAX(O22:O33) -> 181
J36: =+A6 -> 2021 | K36: mg/Nm3 | L36: Monthly 1/2 hourly mean | M36: Monthly 1/2 hourly maximum | N36: Monthly daily mean | O36: Monthly daily maximum
J37: A3 | K37: Jan | L37: 155.8 | M37: 274 | N37: 155.3 | O37: 163.5
K38: Feb | L38: 155.5 | M38: 213 | N38: 155 | O38: 158
C39: 2021 | K39: Mar | L39: 153.5 | M39: 211 | N39: 153.5 | O39: 160
K40: Apr | L40: 150 | M40: 229 | N40: 150 | O40: 158
K41: May | L41: 129 | M41: 174 | N41: 129 | O41: 141
K42: Jun | L42: 153 | M42: 246 | N42: 153 | O42: 158
K43: Jul | L43: 156 | M43: 312 | N43: 156 | O43: 166
K44: Aug | L44: 157 | M44: 262 | N44: 157 | O44: 162
K45: Sep | L45: 157 | M45: 261 | N45: 157 | O45: 161
K46: Oct | L46: 157 | M46: 288 | N46: 157 | O46: 165
K47: Nov | L47: 157 | M47: 312 | N47: 157 | O47: 162
A48: Comments : | K48: Dec | L48: 155 | M48: 251 | N48: 155 | O48: 160
K49: Annual | L49: =AVERAGE(L37:L48) -> 152.9833333 | M49: =MAX(M37:M48) -> 312 | N49: =AVERAGE(N37:N48) -> 152.9 | O49: =MAX(O37:O48) -> 166
J51: =+A6 -> 2021 | K51: mg/Nm3 | L51: Monthly 1/2 hourly mean | M51: Monthly 1/2 hourly maximum | N51: Monthly daily mean | O51: Monthly daily maximum
J52: A4 | K52: Jan | L52: 190 | M52: 219 | N52: 190 | O52: 190
K53: Feb | L53: 190 | M53: 214 | N53: 190 | O53: 190
K54: Mar | L54: 190 | M54: 216 | N54: 190 | O54: 190
K55: Apr | L55: 190 | M55: 221 | N55: 190 | O55: 191
K56: May | L56: 190 | M56: 210 | N56: 190 | O56: 190
K57: Jun | L57: 190 | M57: 222 | N57: 190 | O57: 191
K58: Jul | L58: 190 | M58: 217 | N58: 190 | O58: 191
K59: Aug | L59: 1902 | M59: 207 | N59: 190 | O59: 190
K60: Sep | L60: 190 | M60: 206 | N60: 190 | O60: 190
K61: Oct | L61: 190 | M61: 217 | N61: 190 | O61: 190
K62: Nov | L62: 190 | M62: 217 | N62: 190 | O62: 191
K63: Dec | L63: 190 | M63: 234 | N63: 190 | O63: 191
K64: Annual | L64: =AVERAGE(L52:L63) -> 332.6666667 | M64: =MAX(M52:M63) -> 234 | N64: =AVERAGE(N52:N63) -> 190 | O64: =MAX(O52:O63) -> 191
J66: =+A6 -> 2021 | K66: mg/Nm3 | L66: Monthly 1/2 hourly mean | M66: Monthly 1/2 hourly maximum | N66: Monthly daily mean | O66: Monthly daily maximum
J67: A5 | K67: Jan | L67: 190 | M67: 203 | N67: 190 | O67: 190
K68: Feb | L68: 190 | M68: 207 | N68: 190 | O68: 190
K69: Mar | L69: 190 | M69: 200 | N69: 190 | O69: 190
K70: Apr | L70: 190 | M70: 205 | N70: 190 | O70: 190
K71: May | L71: 190 | M71: 200 | N71: 190 | O71: 190
K72: Jun | L72: 190 | M72: 204 | N72: 190 | O72: 190
K73: Jul | L73: 190 | M73: 202 | N73: 190 | O73: 190
K74: Aug | L74: 190 | M74: 225 | N74: 190 | O74: 190
K75: Sep | L75: 190 | M75: 202 | N75: 190 | O75: 190
K76: Oct | L76: 190 | M76: 204 | N76: 190 | O76: 190
K77: Nov | L77: 190 | M77: 204 | N77: 190 | O77: 191
K78: Dec | L78: 190 | M78: 206 | N78: 190 | O78: 190
K79: Annual | L79: =AVERAGE(L67:L78) -> 190 | M79: =MAX(M67:M78) -> 225 | N79: =AVERAGE(N67:N78) -> 190 | O79: =MAX(O67:O78) -> 191

Sheet TOC
A1: =+'Cover Page'!$B$29 -> Annual Performance Report 2021 | E1: =+'Cover Page'!$B$33 -> SUEZ R&R UK LTD SUEZ R&R Tees Valley – Energy from Waste Facility Tees Valley – Energy from Waste Facility
A3: Monitoring of Total organic carbon emissions | D3: Whole Installation | G3: See Notes in Cell Q3 | J3: =+A3 -> Monitoring of Total organic carbon emissions | N3: Per Combustion Line | Q3: Notes:
Q4: User to add logic to complete Whole installation, Table A5:G18. From the data in Per Combustion Line, Table J6:O79, subject to No. of lines installed
A5: mg/Nm3 | B5: 1/2 Hourly Reference Periods | E5: Daily Reference Periods
A6: =+'Cover Page'!C39 -> 2021 | B6: 1/2 hourly TOC ELV | C6: Monthly 1/2 hourly mean | D6: Highest 1/2 hourly maximum | E6: Daily TOC ELV | F6: Monthly daily mean | G6: Highest daily maximum | J6: =+A6 -> 2021 | K6: mg/Nm3 | L6: Monthly 1/2 hourly mean | M6: Monthly 1/2 hourly maximum | N6: Monthly daily mean | O6: Monthly daily maximum
A7: Jan | B7: 20 | C7: =AVERAGE(L7,L22,L37,L52,L67) -> 0.34 | D7: =MAX(M7,M22,M37,M52,M67) -> 14.6 | E7: 10 | F7: =AVERAGE(N7,N22,N37,N52,N67) -> 0.34 | G7: =MAX(O7,O22,O37,O52,O67) -> 0.9 | J7: A1 | K7: Jan | L7: 0.4 | M7: 5.5 | N7: 0.4 | O7: 0.5
A8: Feb | B8: 20 | C8: =AVERAGE(L8,L23,L38,L53,L68) -> 0.38 | D8: =MAX(M8,M23,M38,M53,M68) -> 14 | E8: 10 | F8: =AVERAGE(N8,N23,N38,N53,N68) -> 0.38 | G8: =MAX(O8,O23,O38,O53,O68) -> 4.1 | K8: Feb | L8: 0.6 | M8: 14 | N8: 0.6 | O8: 2.2
A9: Mar | B9: 20 | C9: 0.42 | D9: 70 | E9: 10 | F9: 0.42 | G9: 7 | K9: Mar | L9: 0.4 | M9: 6.1 | N9: 0.4 | O9: 0.7 | Q9: Whole Installation table A5:G18:
A10: Apr | B10: 20 | C10: 0.38 | D10: 26 | E10: 10 | F10: 0.38 | G10: 2.2 | K10: Apr | L10: 0.5 | M10: 26 | N10: 0.5 | O10: 1.9 | Q10: Mean: for 1/2 hourly and daily periods calculate mean of values across all operational combustion lines for the month
A11: May | B11: 20 | C11: 0.34 | D11: 70 | E11: 10 | F11: 0.36 | G11: 1.1 | K11: May | L11: 0.4 | M11: 21 | N11: 0.4 | O11: 1.1
A12: Jun | B12: 20 | C12: 0.5 | D12: 23 | E12: 10 | F12: 0.5 | G12: 1.9 | K12: Jun | L12: 0.6 | M12: 23 | N12: 0.6 | O12: 1.9
A13: Jul | B13: 20 | C13: 0.44 | D13: 37.2 | E13: 10 | F13: 0.44 | G13: 2.9 | K13: Jul | L13: 0.6 | M13: 37.2 | N13: 0.6 | O13: 2.1 | Q13: Maximum: for 1/2 hourly and daily periods use the highest value across all operational combustion lines for the month
A14: Aug | B14: 20 | C14: 0.36 | D14: 22.8 | E14: 10 | F14: 0.36 | G14: 2.1 | K14: Aug | L14: 0.4 | M14: 16.5 | N14: 0.4 | O14: 0.8
A15: Sep | B15: 20 | C15: 0.3 | D15: 48.8 | E15: 10 | F15: 0.3 | G15: 1.8 | K15: Sep | L15: 0.4 | M15: 5.9 | N15: 0.4 | O15: 0.8
A16: Oct | B16: 20 | C16: 0.44 | D16: 15.6 | E16: 10 | F16: 0.44 | G16: 6.3 | K16: Oct | L16: 0.6 | M16: 2.7 | N16: 0.6 | O16: 0.8
A17: Nov | B17: 20 | C17: 0.36 | D17: 14 | E17: 10 | F17: 0.36 | G17: 2.5 | K17: Nov | L17: 0.1 | M17: 3.7 | N17: 0.1 | O17: 0.3
A18: Dec | B18: 20 | C18: 0.24 | D18: 9.5 | E18: 10 | F18: 0.24 | G18: 0.9 | K18: Dec | L18: 0.1 | M18: 4 | N18: 0.1 | O18: 0.3
K19: Annual | L19: =AVERAGE(L7:L18) -> 0.425 | M19: =MAX(M7:M18) -> 37.2 | N19: =AVERAGE(N7:N18) -> 0.425 | O19: =MAX(O7:O18) -> 2.2
J21: =+A6 -> 2021 | K21: mg/Nm3 | L21: Monthly 1/2 hourly mean | M21: Monthly 1/2 hourly maximum | N21: Monthly daily mean | O21: Monthly daily maximum
J22: A2 | K22: Jan | L22: 0.6 | M22: 8 | N22: 0.6 | O22: 0.9
K23: Feb | L23: 0.8 | M23: 11 | N23: 0.8 | O23: 4.1
K24: Mar | L24: 1 | M24: 70 | N24: 1 | O24: 7
K25: Apr | L25: 0.8 | M25: 8.3 | N25: 0.8 | O25: 2.2
K26: May | L26: 0.8 | M26: 70 | N26: 0.9 | O26: 0.9
K27: Jun | L27: 0.7 | M27: 10.1 | N27: 0.7 | O27: 1.3
K28: Jul | L28: 0.8 | M28: 19 | N28: 0.8 | O28: 2.9
B29: Annual Performance Report 2021 | K29: Aug | L29: 0.7 | M29: 22.8 | N29: 0.7 | O29: 2.1
K30: Sep | L30: 0.6 | M30: 48.8 | N30: 0.6 | O30: 1.8
K31: Oct | L31: 1.1 | M31: 12 | N31: 1.1 | O31: 6.3
K32: Nov | L32: 1.1 | M32: 9 | N32: 1.1 | O32: 2.5
K33: Dec | L33: 0.5 | M33: 3.1 | N33: 0.5 | O33: 0.9
K34: Annual | L34: =AVERAGE(L22:L33) -> 0.7916666667 | M34: =MAX(M22:M33) -> 70 | N34: =AVERAGE(N22:N33) -> 0.8 | O34: =MAX(O22:O33) -> 7
J36: =+A6 -> 2021 | K36: mg/Nm3 | L36: Monthly 1/2 hourly mean | M36: Monthly 1/2 hourly maximum | N36: Monthly daily mean | O36: Monthly daily maximum
J37: A3 | K37: Jan | L37: 0.5 | M37: 14.6 | N37: 0.5 | O37: 0.9
K38: Feb | L38: 0.3 | M38: 2.7 | N38: 0.3 | O38: 1.1
C39: 2021 | K39: Mar | L39: 0.5 | M39: 69.8 | N39: 0.5 | O39: 1
K40: Apr | L40: 0.3 | M40: 14.1 | N40: 0.3 | O40: 0.7
K41: May | L41: 0.2 | M41: 2.5 | N41: 0.2 | O41: 0.4
K42: Jun | L42: 1 | M42: 7.9 | N42: 1 | O42: 1.1
K43: Jul | L43: 0.4 | M43: 6.1 | N43: 0.4 | O43: 0.7
K44: Aug | L44: 0.3 | M44: 7.4 | N44: 0.3 | O44: 0.6
K45: Sep | L45: 0.2 | M45: 22.7 | N45: 0.2 | O45: 0.6
K46: Oct | L46: 0.2 | M46: 1.8 | N46: 0.2 | O46: 0.4
K47: Nov | L47: 0.2 | M47: 7 | N47: 0.2 | O47: 0.3
A48: Comments : | K48: Dec | L48: 0.2 | M48: 9.5 | N48: 0.2 | O48: 0.5
K49: Annual | L49: =AVERAGE(L37:L48) -> 0.3583333333 | M49: =MAX(M37:M48) -> 69.8 | N49: =AVERAGE(N37:N48) -> 0.3583333333 | O49: =MAX(O37:O48) -> 1.1
J51: =+A6 -> 2021 | K51: mg/Nm3 | L51: Monthly 1/2 hourly mean | M51: Monthly 1/2 hourly maximum | N51: Monthly daily mean | O51: Monthly daily maximum
J52: A4 | K52: Jan | L52: 0 | M52: 6.3 | N52: 0 | O52: 0.1
K53: Feb | L53: 0 | M53: 1.1 | N53: 0 | O53: 0.1
K54: Mar | L54: 0 | M54: 1 | N54: 0 | O54: 0.1
K55: Apr | L55: 0.1 | M55: 0.9 | N55: 0.1 | O55: 0.2
K56: May | L56: 0.1 | M56: 0.8 | N56: 0.1 | O56: 0.1
K57: Jun | L57: 0 | M57: 0.8 | N57: 0 | O57: 0.1
K58: Jul | L58: 0.2 | M58: 1 | N58: 0.2 | O58: 0.3
K59: Aug | L59: 0.2 | M59: 6.6 | N59: 0.2 | O59: 0.3
K60: Sep | L60: 0.1 | M60: 9.3 | N60: 0.1 | O60: 0.3
K61: Oct | L61: 0.1 | M61: 15.6 | N61: 0.1 | O61: 0.8
K62: Nov | L62: 0.2 | M62: 14 | N62: 0.2 | O62: 0.5
K63: Dec | L63: 0.2 | M63: 2.1 | N63: 0.2 | O63: 0.3
K64: Annual | L64: =AVERAGE(L52:L63) -> 0.1 | M64: =MAX(M52:M63) -> 15.6 | N64: =AVERAGE(N52:N63) -> 0.1 | O64: =MAX(O52:O63) -> 0.8
J66: =+A6 -> 2021 | K66: mg/Nm3 | L66: Monthly 1/2 hourly mean | M66: Monthly 1/2 hourly maximum | N66: Monthly daily mean | O66: Monthly daily maximum
J67: A5 | K67: Jan | L67: 0.2 | M67: 0.2 | N67: 0.2 | O67: 0.2
K68: Feb | L68: 0.2 | M68: 2 | N68: 0.2 | O68: 0.3
K69: Mar | L69: 0.2 | M69: 15 | N69: 0.2 | O69: 0.5
K70: Apr | L70: 0.2 | M70: 8.1 | N70: 0.2 | O70: 0.4
K71: May | L71: 0.2 | M71: 0.8 | N71: 0.2 | O71: 0.2
K72: Jun | L72: 0.2 | M72: 1.2 | N72: 0.2 | O72: 0.2
K73: Jul | L73: 0.2 | M73: 1.8 | N73: 0.2 | O73: 0.3
K74: Aug | L74: 0.2 | M74: 1.9 | N74: 0.2 | O74: 0.3
K75: Sep | L75: 0.2 | M75: 0.9 | N75: 0.2 | O75: 0.2
K76: Oct | L76: 0.2 | M76: 0.7 | N76: 0.2 | O76: 0.2
K77: Nov | L77: 0.2 | M77: 0.9 | N77: 0.2 | O77: 0.2
K78: Dec | L78: 0.2 | M78: 0.7 | N78: 0.2 | O78: 0.2
K79: Annual | L79: =AVERAGE(L67:L78) -> 0.2 | M79: =MAX(M67:M78) -> 15 | N79: =AVERAGE(N67:N78) -> 0.2 | O79: =MAX(O67:O78) -> 0.5

Sheet Particulates
A1: =+'Cover Page'!$B$29 -> Annual Performance Report 2021 | E1: =+'Cover Page'!$B$33 -> SUEZ R&R UK LTD SUEZ R&R Tees Valley – Energy from Waste Facility Tees Valley – Energy from Waste Facility
A3: Monitoring of Particulate matter emissions | D3: Whole Installation | G3: See Notes in Cell Q3 | J3: =+A3 -> Monitoring of Particulate matter emissions | N3: Per Combustion Line | Q3: Notes:
Q4: User to add logic to complete Whole installation, Table A5:G18. From the data in Per Combustion Line, Table J6:O79, subject to No. of lines installed
A5: mg/Nm3 | B5: 1/2 Hourly Reference Periods | E5: Daily Reference Periods
A6: =+'Cover Page'!C39 -> 2021 | B6: 1/2 hourly PM ELV | C6: Monthly 1/2 hourly mean | D6: Highest 1/2 hourly maximum | E6: Daily PM ELV | F6: Monthly daily mean | G6: Highest daily maximum | J6: =+A6 -> 2021 | K6: mg/Nm3 | L6: Monthly 1/2 hourly mean | M6: Monthly 1/2 hourly maximum | N6: Monthly daily mean | O6: Monthly daily maximum
A7: Jan | B7: 30 | C7: =AVERAGE(L7,L22,L37,L52,L67) -> 0.9 | D7: =MAX(M7,M22,M37,M52,M67) -> 4.5 | E7: 10 | F7: =AVERAGE(N7,N22,N37,N52,N67) -> 0.9 | G7: =MAX(O7,O22,O37,O52,O67) -> 2.1 | J7: A1 | K7: Jan | L7: 1.6 | M7: 3.2 | N7: 1.6 | O7: 2.1
A8: Feb | B8: 30 | C8: =AVERAGE(L8,L23,L38,L53,L68) -> 1 | D8: =MAX(M8,M23,M38,M53,M68) -> 28.4 | E8: 10 | F8: =AVERAGE(N8,N23,N38,N53,N68) -> 1 | G8: =MAX(O8,O23,O38,O53,O68) -> 2.3 | K8: Feb | L8: 1.5 | M8: 10.6 | N8: 1.5 | O8: 1.8
A9: Mar | B9: 30 | C9: 1.22 | D9: 15.3 | E9: 10 | F9: 1.22 | G9: 6 | K9: Mar | L9: 1.7 | M9: 6 | N9: 1.7 | O9: 1.9 | Q9: Whole Installation table A5:G18:
A10: Apr | B10: 30 | C10: 1.2 | D10: 18 | E10: 10 | F10: 1.2 | G10: 3.1 | K10: Apr | L10: 1.7 | M10: 3 | N10: 1.7 | O10: 2 | Q10: Mean: for 1/2 hourly and daily periods calculate mean of values across all operational combustion lines for the month
A11: May | B11: 30 | C11: 1.22 | D11: 14.8 | E11: 10 | F11: 1.22 | G11: 6.1 | K11: May | L11: 1.5 | M11: 4.1 | N11: 1.5 | O11: 1.9
A12: Jun | B12: 30 | C12: 1.14 | D12: 6.4 | E12: 10 | F12: 1.14 | G12: 3.1 | K12: Jun | L12: 1.2 | M12: 2.5 | N12: 1.2 | O12: 1.4
A13: Jul | B13: 30 | C13: 1.132 | D13: 7.4 | E13: 10 | F13: 1.18 | G13: 2.9 | K13: Jul | L13: 1.3 | M13: 2.1 | N13: 1.3 | O13: 1.5 | Q13: Maximum: for 1/2 hourly and daily periods use the highest value across all operational combustion lines for the month
A14: Aug | B14: 30 | C14: 1.02 | D14: 4 | E14: 10 | F14: 1.02 | G14: 3.2 | K14: Aug | L14: 1.4 | M14: 2.3 | N14: 1.4 | O14: 1.7
A15: Sep | B15: 30 | C15: 1.22 | D15: 13.2 | E15: 10 | F15: 1.22 | G15: 5.6 | K15: Sep | L15: 1.5 | M15: 3.2 | N15: 1.5 | O15: 1.7
A16: Oct | B16: 30 | C16: 1.1 | D16: 8.9 | E16: 10 | F16: 1.1 | G16: 3.4 | K16: Oct | L16: 1.6 | M16: 2.9 | N16: 1.6 | O16: 1.8
A17: Nov | B17: 30 | C17: 0.64 | D17: 2.8 | E17: 10 | F17: 0.64 | G17: 1.8 | K17: Nov | L17: 0.8 | M17: 2.8 | N17: 0.8 | O17: 1
A18: Dec | B18: 30 | C18: 0.84 | D18: 10.6 | E18: 10 | F18: 0.84 | G18: 9 | K18: Dec | L18: 0.5 | M18: 10.6 | N18: 0.5 | O18: 9
K19: Annual | L19: =AVERAGE(L7:L18) -> 1.358333333 | M19: =MAX(M7:M18) -> 10.6 | N19: =AVERAGE(N7:N18) -> 1.358333333 | O19: =MAX(O7:O18) -> 9
J21: =+A6 -> 2021 | K21: mg/Nm3 | L21: Monthly 1/2 hourly mean | M21: Monthly 1/2 hourly maximum | N21: Monthly daily mean | O21: Monthly daily maximum
J22: A2 | K22: Jan | L22: 1.2 | M22: 4.5 | N22: 1.2 | O22: 1.6
K23: Feb | L23: 1.3 | M23: 4.8 | N23: 1.3 | O23: 1.9
K24: Mar | L24: 1.3 | M24: 6 | N24: 1.3 | O24: 1.6
K25: Apr | L25: 1.2 | M25: 3 | N25: 1.2 | O25: 1.7
K26: May | L26: 1.3 | M26: 3.6 | N26: 1.3 | O26: 1.9
K27: Jun | L27: 1.2 | M27: 3.2 | N27: 1.2 | O27: 1.5
K28: Jul | L28: 1 | M28: 3.1 | N28: 1 | O28: 1.5
B29: Annual Performance Report 2021 | K29: Aug | L29: 0.9 | M29: 4 | N29: 0.9 | O29: 1
K30: Sep | L30: 0.9 | M30: 4.1 | N30: 0.9 | O30: 1.3
K31: Oct | L31: 1 | M31: 2.9 | N31: 1 | O31: 1.2
K32: Nov | L32: 0.1 | M32: 1.4 | N32: 0.1 | O32: 0.2
K33: Dec | L33: 0.1 | M33: 0.6 | N33: 0.1 | O33: 0.2
K34: Annual | L34: =AVERAGE(L22:L33) -> 0.9583333333 | M34: =MAX(M22:M33) -> 6 | N34: =AVERAGE(N22:N33) -> 0.9583333333 | O34: =MAX(O22:O33) -> 1.9
J36: =+A6 -> 2021 | K36: mg/Nm3 | L36: Monthly 1/2 hourly mean | M36: Monthly 1/2 hourly maximum | N36: Monthly daily mean | O36: Monthly daily maximum
J37: A3 | K37: Jan | L37: 0.2 | M37: 1.5 | N37: 0.2 | O37: 0.5
K38: Feb | L38: 0.7 | M38: 28.4 | N38: 0.7 | O38: 2.3
C39: 2021 | K39: Mar | L39: 1.7 | M39: 15.3 | N39: 1.7 | O39: 6
K40: Apr | L40: 1.8 | M40: 18 | N40: 1.8 | O40: 3.1
K41: May | L41: 2.2 | M41: 14.8 | N41: 2.2 | O41: 6.1
K42: Jun | L42: 2.4 | M42: 6.4 | N42: 2.4 | O42: 3.1
K43: Jul | L43: 1.36 | M43: 7.4 | N43: 1.6 | O43: 2.9
K44: Aug | L44: 1.4 | M44: 3.8 | N44: 1.4 | O44: 3.2
K45: Sep | L45: 1.7 | M45: 13 | N45: 1.7 | O45: 5.6
K46: Oct | L46: 1.4 | M46: 8.9 | N46: 1.4 | O46: 3.4
K47: Nov | L47: 0.7 | M47: 2.1 | N47: 0.7 | O47: 1.8
A48: Comments : | K48: Dec | L48: 1.8 | M48: 7.2 | N48: 1.8 | O48: 4.8
K49: Annual | L49: =AVERAGE(L37:L48) -> 1.446666667 | M49: =MAX(M37:M48) -> 28.4 | N49: =AVERAGE(N37:N48) -> 1.466666667 | O49: =MAX(O37:O48) -> 6.1
J51: =+A6 -> 2021 | K51: mg/Nm3 | L51: Monthly 1/2 hourly mean | M51: Monthly 1/2 hourly maximum | N51: Monthly daily mean | O51: Monthly daily maximum
J52: A4 | K52: Jan | L52: 0.9 | M52: 1.2 | N52: 0.9 | O52: 1
K53: Feb | L53: 1 | M53: 1.3 | N53: 1 | O53: 1.1
K54: Mar | L54: 1 | M54: 1.9 | N54: 1 | O54: 1.1
K55: Apr | L55: 0.9 | M55: 2.2 | N55: 0.9 | O55: 1
K56: May | L56: 0.6 | M56: 11.5 | N56: 0.6 | O56: 2.4
K57: Jun | L57: 0.3 | M57: 0.5 | N57: 0.3 | O57: 0.4
K58: Jul | L58: 1.5 | M58: 4.1 | N58: 1.5 | O58: 2.1
K59: Aug | L59: 0.7 | M59: 1.4 | N59: 0.7 | O59: 1
K60: Sep | L60: 1 | M60: 13.2 | N60: 1 | O60: 1.6
K61: Oct | L61: 0.3 | M61: 6 | N61: 0.3 | O61: 0.4
K62: Nov | L62: 0.4 | M62: 0.7 | N62: 0.4 | O62: 0.5
K63: Dec | L63: 0.5 | M63: 0.9 | N63: 0.5 | O63: 0.7
K64: Annual | L64: =AVERAGE(L52:L63) -> 0.7583333333 | M64: =MAX(M52:M63) -> 13.2 | N64: =AVERAGE(N52:N63) -> 0.7583333333 | O64: =MAX(O52:O63) -> 2.4
J66: =+A6 -> 2021 | K66: mg/Nm3 | L66: Monthly 1/2 hourly mean | M66: Monthly 1/2 hourly maximum | N66: Monthly daily mean | O66: Monthly daily maximum
J67: A5 | K67: Jan | L67: 0.6 | M67: 3.4 | N67: 0.6 | O67: 1.6
K68: Feb | L68: 0.5 | M68: 0.8 | N68: 0.5 | O68: 0.6
K69: Mar | L69: 0.4 | M69: 0.8 | N69: 0.4 | O69: 0.5
K70: Apr | L70: 0.4 | M70: 0.6 | N70: 0.4 | O70: 0.5
K71: May | L71: 0.5 | M71: 0.9 | N71: 0.5 | O71: 0.6
K72: Jun | L72: 0.6 | M72: 0.8 | N72: 0.6 | O72: 0.6
K73: Jul | L73: 0.5 | M73: 2.3 | N73: 0.5 | O73: 0.6
K74: Aug | L74: 0.7 | M74: 1.2 | N74: 0.7 | O74: 0.8
K75: Sep | L75: 1 | M75: 1.5 | N75: 1 | O75: 1.1
K76: Oct | L76: 1.2 | M76: 1.8 | N76: 1.2 | O76: 1.3
K77: Nov | L77: 1.2 | M77: 1.8 | N77: 1.2 | O77: 1.5
K78: Dec | L78: 1.3 | M78: 2.1 | N78: 1.3 | O78: 1.7
K79: Annual | L79: =AVERAGE(L67:L78) -> 0.7416666667 | M79: =MAX(M67:M78) -> 3.4 | N79: =AVERAGE(N67:N78) -> 0.7416666667 | O79: =MAX(O67:O78) -> 1.7

Sheet CO 95% 10 min
A1: =+'Cover Page'!$B$29 -> Annual Performance Report 2021 | E1: =+'Cover Page'!$B$33 -> SUEZ R&R UK LTD SUEZ R&R Tees Valley – Energy from Waste Facility Tees Valley – Energy from Waste Facility
A3: Monitoring of Carbon Monoxide (10-minute avg) | E3: Whole Installation | H3: See Notes in Cell S3 | J3: =+A3 -> Monitoring of Carbon Monoxide (10-minute avg) | O3: Per Combustion Line | Q3: Notes: | S3: Notes:
S4: User to add logic to complete Whole installation, Table A5:H18. From the data in Per Combustion Line, Table K6:Q79, subject to No. of lines installed
A5: mg/Nm3 | B5: 10-minute Reference Periods | F5: Daily Reference Periods
A6: =+'Cover Page'!C39 -> 2021 | B6: 95%ile 10-min avg CO ELV | C6: 95%ile 10-min avg maximum | D6: Monthly CO 10-min avg mean | E6: 10-min avg maximum | F6: Daily CO ELV | G6: Monthly daily mean | H6: Highest daily maximum | K6: =+A6 -> 2021 | L6: mg/Nm3 | M6: 95%ile 10-min avg maximum | N6: Monthly CO 10-min avg mean | O6: 10-min avg maximum | P6: Monthly daily mean | Q6: Monthly daily maximum
A7: Jan | B7: 150 | C7: =AVERAGE(M7,M22,M37,M52,M67) -> 16.92 | D7: =AVERAGE(N7,N22,N37,N52,N67) -> 4.8 | E7: =MAX(O7,O22,O37,O52,O67) -> 578 | F7: 50 | G7: =AVERAGE(P7,P22,P37,P52,P67) -> 4.8 | H7: =MAX(Q7,Q22,Q37,Q52,Q67) -> 10.7 | K7: A1 | L7: Jan | M7: 30 | N7: 3.9 | O7: 325 | P7: 3.9 | Q7: 9.4
A8: Feb | B8: =+B7 -> 150 | C8: =AVERAGE(M8,M23,M38,M53,M68) -> 20.52 | D8: =AVERAGE(N8,N23,N38,N53,N68) -> 6.06 | E8: =MAX(O8,O23,O38,O53,O68) -> 475.9 | F8: =+F7 -> 50 | G8: =AVERAGE(P8,P23,P38,P53,P68) -> 6.06 | H8: =MAX(Q8,Q23,Q38,Q53,Q68) -> 11.3 | L8: Feb | M8: 47 | N8: 7.9 | O8: 391 | P8: 7.9 | Q8: 11.3
A9: Mar | B9: =+B8 -> 150 | C9: 17.42 | D9: 7.54 | E9: 2040 | F9: =+F8 -> 50 | G9: 7.54 | H9: 33.2 | L9: Mar | M9: 11.4 | N9: 4.4 | O9: 380 | P9: 4.4 | Q9: 8.3 | S9: Whole Installation table A5:H18:
A10: Apr | B10: 150 | C10: 15 | D10: 5.56 | E10: 1656 | F10: 50 | G10: 5.56 | H10: 42 | L10: Apr | M10: 33 | N10: 3.9 | O10: 425 | P10: 3.9 | Q10: 17.8 | S10: Mean: for 10-min and daily periods use average of all operational combustion lines.
A11: May | B11: 150 | C11: 8.06 | D11: 5.64 | E11: 2760 | F11: 50 | G11: 5.64 | H11: 22.5 | L11: May | M11: 7.4 | N11: 3.8 | O11: 450 | P11: 3.8 | Q11: 14.3
A12: Jun | B12: 150 | C12: 7.5 | D12: 4.92 | E12: 536 | F12: 50 | G12: 4.92 | H12: 14 | L12: Jun | M12: 5.9 | N12: 3.6 | O12: 450 | P12: 3.6 | Q12: 14
A13: Jul | B13: 150 | C13: 9.72 | D13: 4.76 | E13: 456 | F13: 50 | G13: 4.76 | H13: 14.7 | L13: Jul | M13: 5 | N13: 3.1 | O13: 450 | P13: 3.1 | Q13: 10.7 | S13: Maximum: for 10-min and daily periods use the highest of all operational combustion lines in any month.
A14: Aug | B14: 150 | C14: 8.58 | D14: 4.64 | E14: 990 | F14: 50 | G14: 4.64 | H14: 15.2 | L14: Aug | M14: 9 | N14: 4.2 | O14: 450 | P14: 4.2 | Q14: 12.3
A15: Sep | B15: 150 | C15: 9.86 | D15: 5.52 | E15: 915 | F15: 50 | G15: 5.52 | H15: 15.3 | L15: Sep | M15: 16.6 | N15: 6.2 | O15: 209 | P15: 6.2 | Q15: 14
A16: Oct | B16: 150 | C16: 21.36 | D16: 7.34 | E16: 450 | F16: 50 | G16: 7.34 | H16: 32.2 | L16: Oct | M16: 22 | N16: 6.5 | O16: 282 | P16: 6.5 | Q16: 12.8
A17: Nov | B17: 150 | C17: 7.16 | D17: 5.22 | E17: 1013 | F17: 50 | G17: 5.22 | H17: 18.9 | L17: Nov | M17: 4.2 | N17: 2.9 | O17: 3.26 | P17: 2.9 | Q17: 8.7
A18: Dec | B18: 150 | C18: 6.22 | D18: 4.92 | E18: 514.7 | F18: 50 | G18: 4.92 | H18: 17 | L18: Dec | M18: 4.7 | N18: 3 | O18: 351 | P18: 3 | Q18: 9.2
L19: Annual | M19: =AVERAGE(M7:M18) -> 16.35 | O19: =MAX(O7:O18) -> 450 | P19: =AVERAGE(P7:P18) -> 4.45 | Q19: =MAX(Q7:Q18) -> 17.8
K21: =+A6 -> 2021 | L21: mg/Nm3 | M21: 95%ile 10-min avg maximum | N21: Monthly CO 10-min avg mean | O21: 10-min avg maximum | P21: Monthly daily mean | Q21: Monthly daily maximum
K22: A2 | L22: Jan | M22: 5.6 | N22: 1.4 | O22: 247 | P22: 1.4 | Q22: 3.5
L23: Feb | M23: 16 | N23: 4.3 | O23: 210 | P23: 4.3 | Q23: 10.6
L24: Mar | M24: 33.5 | N24: 13 | O24: 450 | P24: 13 | Q24: 33.2
L25: Apr | M25: 13 | N25: 6.5 | O25: 450 | P25: 6.5 | Q25: 13.1
L26: May | M26: 11.7 | N26: 6.9 | O26: 450 | P26: 6.9 | Q26: 22.5
L27: Jun | M27: 10.2 | N27: 5.5 | O27: 275 | P27: 5.5 | Q27: 10.4
L28: Jul | M28: 11.1 | N28: 5.8 | O28: 343 | P28: 5.8 | Q28: 14.7
B29: Annual Performance Report 2021 | L29: Aug | M29: 18.4 | N29: 7.1 | O29: 348 | P29: 7.1 | Q29: 15.2
L30: Sep | M30: 18.2 | N30: 8.2 | O30: 450 | P30: 8.2 | Q30: 15.3
L31: Oct | M31: 67.4 | N31: 16.2 | O31: 450 | P31: 16.2 | Q31: 27
L32: Nov | M32: 14.4 | N32: 7.8 | O32: 226 | P32: 7.8 | Q32: 18.9
L33: Dec | M33: 6.8 | N33: 4.8 | O33: 450 | P33: 4.8 | Q33: 17
L34: Annual | M34: =AVERAGE(M22:M33) -> 18.85833333 | O34: =MAX(O22:O33) -> 450 | P34: =AVERAGE(P22:P33) -> 7.291666667 | Q34: =MAX(Q22:Q33) -> 33.2
K36: =+A6 -> 2021 | L36: mg/Nm3 | M36: 95%ile 10-min avg maximum | N36: Monthly CO 10-min avg mean | O36: 10-min avg maximum | P36: Monthly daily mean | Q36: Monthly daily maximum
K37: A3 | L37: Jan | M37: 20.4 | N37: 3.9 | O37: 73.5 | P37: 3.9 | Q37: 7
L38: Feb | M38: 21.7 | N38: 4.2 | O38: 475.9 | P38: 4.2 | Q38: 5.3
C39: 2021 | L39: Mar | M39: 14.5 | N39: 7.4 | O39: 2040 | P39: 7.4 | Q39: 19.4
L40: Apr | M40: 18.2 | N40: 5.4 | O40: 1212 | P40: 5.4 | Q40: 42
L41: May | M41: 10.6 | N41: 5 | O41: 813 | P41: 5 | Q41: 6
L42: Jun | M42: 11.7 | N42: 5.6 | O42: 536 | P42: 5.6 | Q42: 5.4
L43: Jul | M43: 22.5 | N43: 2.2 | O43: 456 | P43: 2.2 | Q43: 8.7
L44: Aug | M44: 5.9 | N44: 1.8 | O44: 990 | P44: 1.8 | Q44: 9.8
L45: Sep | M45: 4.1 | N45: 2.3 | O45: 915 | P45: 2.3 | Q45: 13.3
L46: Oct | M46: 6.5 | N46: 1.9 | O46: 101 | P46: 1.9 | Q46: 3.7
L47: Nov | M47: 5.4 | N47: 2.6 | O47: 202 | P47: 2.6 | Q47: 4.4
A48: Comments : | L48: Dec | M48: 6 | N48: 2.7 | O48: 514.7 | P48: 2.7 | Q48: 5.4
A49: Environment Agency explanatory note: The 10-minute average ELV is based on the “95th percentile”. In this case this means that 95% of the 10 minute averages in the relevant 24-hour period (i.e. 137) must be below 150 mg/Nm3, and 5% (i.e. 7) are allowed to be any value above 150 mg/Nm3. Whilst we expect operators to minimise CO emissions at all times, it is perfectly acceptable for the value of the maximum 10-minute average to be above 150 mg/Nm3, provided the 95th percentile ELV has been met for that period. | L49: Annual | M49: =AVERAGE(M37:M48) -> 12.29166667 | O49: =MAX(O37:O48) -> 2040 | P49: =AVERAGE(P37:P48) -> 3.75 | Q49: =MAX(Q37:Q48) -> 42
K51: =+A6 -> 2021 | L51: mg/Nm3 | M51: 95%ile 10-min avg maximum | N51: Monthly CO 10-min avg mean | O51: 10-min avg maximum | P51: Monthly daily mean | Q51: Monthly daily maximum
K52: A4 | L52: Jan | M52: 10.7 | N52: 7.6 | O52: 408 | P52: 7.6 | Q52: 10.7
L53: Feb | M53: 9.1 | N53: 7.1 | O53: 110 | P53: 7.1 | Q53: 9.6
L54: Mar | M54: 8.4 | N54: 6.4 | O54: 94 | P54: 6.4 | Q54: 8.4
L55: Apr | M55: 5.6 | N55: 6 | O55: 261.8 | P55: 6 | Q55: 8.7
L56: May | M56: 5.3 | N56: 5.5 | O56: 40.6 | P56: 5.5 | Q56: 7.2
L57: Jun | M57: 4.8 | N57: 4.9 | O57: 14.6 | P57: 4.9 | Q57: 5.7
L58: Jul | M58: 4.9 | N58: 6.9 | O58: 19.7 | P58: 6.9 | Q58: 8.1
L59: Aug | M59: 4.7 | N59: 4.9 | O59: 273 | P59: 4.9 | Q59: 7.2
L60: Sep | M60: 5.1 | N60: 5.4 | O60: 175 | P60: 5.4 | Q60: 6.7
L61: Oct | M61: 4.9 | N61: 5.9 | O61: 254 | P61: 5.9 | Q61: 32.2
L62: Nov | M62: 5.2 | N62: 5.6 | O62: 1013 | P62: 5.6 | Q62: 12
L63: Dec | M63: 6.4 | N63: 6.6 | O63: 177 | P63: 6.6 | Q63: 10.4
L64: Annual | M64: =AVERAGE(M52:M63) -> 6.258333333 | O64: =MAX(O52:O63) -> 1013 | P64: =AVERAGE(P52:P63) -> 6.066666667 | Q64: =MAX(Q52:Q63) -> 32.2
K66: =+A6 -> 2021 | L66: mg/Nm3 | M66: 95%ile 10-min avg maximum | N66: Monthly CO 10-min avg mean | O66: 10-min avg maximum | P66: Monthly daily mean | Q66: Monthly daily maximum
K67: A5 | L67: Jan | M67: 17.9 | N67: 7.2 | O67: 578 | P67: 7.2 | Q67: 9.7
L68: Feb | M68: 8.8 | N68: 6.8 | O68: 329 | P68: 6.8 | Q68: 9
L69: Mar | M69: 19.3 | N69: 6.5 | O69: 1275 | P69: 6.5 | Q69: 19.3
L70: Apr | M70: 5.2 | N70: 6 | O70: 1656 | P70: 6 | Q70: 19
L71: May | M71: 5.3 | N71: 7 | O71: 2760 | P71: 7 | Q71: 6.9
L72: Jun | M72: 4.9 | N72: 5 | O72: 62.5 | P72: 5 | Q72: 6.2
L73: Jul | M73: 5.1 | N73: 5.8 | O73: 65 | P73: 5.8 | Q73: 8.6
L74: Aug | M74: 4.9 | N74: 5.2 | O74: 284 | P74: 5.2 | Q74: 8.7
L75: Sep | M75: 5.3 | N75: 5.5 | O75: 81 | P75: 5.5 | Q75: 6.8
L76: Oct | M76: 6 | N76: 6.2 | O76: 25.4 | P76: 6.2 | Q76: 7.8
L77: Nov | M77: 6.6 | N77: 7.2 | O77: 62.2 | P77: 7.2 | Q77: 13.8
L78: Dec | M78: 7.2 | N78: 7.5 | O78: 139 | P78: 7.5 | Q78: 9.5
L79: Annual | M79: =AVERAGE(M67:M78) -> 8.041666667 | O79: =MAX(O67:O78) -> 2760 | P79: =AVERAGE(P67:P78) -> 6.325 | Q79: =MAX(Q67:Q78) -> 19.3

Sheet NH3
A1: =+'Cover Page'!$B$29 -> Annual Performance Report 2021 | E1: =+'Cover Page'!$B$33 -> SUEZ R&R UK LTD SUEZ R&R Tees Valley – Energy from Waste Facility Tees Valley – Energy from Waste Facility
A3: Monitoring of Ammnonia emissions | D3: Whole Installation | G3: See Notes in Cell Q3 | J3: =+A3 -> Monitoring of Ammnonia emissions | N3: Per Combustion Line | Q3: Notes:
Q4: User to add logic to complete Whole installation, Table A5:G18. From the data in Per Combustion Line, Table J6:O79, subject to No. of lines installed
A5: mg/Nm3 | B5: 1/2 Hourly Reference Periods | E5: Daily Reference Periods
A6: =+'Cover Page'!C39 -> 2021 | B6: 1/2 hourly NH3 ELV | C6: Monthly 1/2 hourly mean | D6: Highest 1/2 hourly maximum | E6: Daily NH3 ELV | F6: Monthly daily mean | G6: Highest daily maximum | J6: =+A6 -> 2021 | K6: mg/Nm3 | L6: Monthly 1/2 hourly mean | M6: Monthly 1/2 hourly maximum | N6: Monthly daily mean | O6: Monthly daily maximum
A7: Jan | B7: 0 | C7: =AVERAGE(L7,L22,L37,L52,L67) -> 1.74 | D7: =MAX(M7,M22,M37,M52,M67) -> 50 | E7: 10 | F7: =AVERAGE(N7,N22,N37,N52,N67) -> 1.74 | G7: =MAX(O7,O22,O37,O52,O67) -> 34.3 | J7: A1 | K7: Jan | L7: 3 | M7: 50 | N7: 3 | O7: 34.3
A8: Feb | B8: =+B7 -> 0 | C8: =AVERAGE(L8,L23,L38,L53,L68) -> 20.57 | D8: =MAX(M8,M23,M38,M53,M68) -> 67.3 | E8: =+E7 -> 10 | F8: =AVERAGE(N8,N23,N38,N53,N68) -> 1.562 | G8: =MAX(O8,O23,O38,O53,O68) -> 7.8 | K8: Feb | L8: 2.3 | M8: 49.5 | N8: 2.3 | O8: 7
A9: Mar | B9: =+B8 -> 0 | C9: 1.922 | D9: 50 | E9: =+E8 -> 10 | F9: 1.922 | G9: 12.3 | K9: Mar | L9: 2.1 | M9: 44.2 | N9: 2.1 | O9: 5.1 | Q9: Whole Installation table A5:G18:
A10: Apr | B10: 0 | C10: 1.716 | D10: 108 | E10: 10 | F10: 1.716 | G10: 8.1 | K10: Apr | L10: 2.9 | M10: 50 | N10: 2.9 | O10: 6.6 | Q10: Mean: for 1/2 hourly and daily periods calculate mean of values across all operational combustion lines for the month
A11: May | B11: 0 | C11: 2.344 | D11: 50 | E11: 10 | F11: 2.344 | G11: 12 | K11: May | L11: 4.3 | M11: 50 | N11: 4.3 | O11: 12
A12: Jun | B12: 0 | C12: 2.246 | D12: 49 | E12: 10 | F12: 2.246 | G12: 12 | K12: Jun | L12: 3.3 | M12: 49 | N12: 3.3 | O12: 12
A13: Jul | B13: 0 | C13: 3.02 | D13: 50 | E13: 10 | F13: 3.02 | G13: 23.6 | K13: Jul | L13: 6.2 | M13: 50 | N13: 6.2 | O13: 23.6 | Q13: Maximum: for 1/2 hourly and daily periods use the highest value across all operational combustion lines for the month
A14: Aug | B14: 0 | C14: 3.8 | D14: 50 | E14: 10 | F14: 3.798 | G14: 24 | K14: Aug | L14: 6.3 | M14: 49 | N14: 6.3 | O14: 24
A15: Sep | B15: 0 | C15: 2.48 | D15: 57 | E15: 10 | F15: 2.48 | G15: 18 | K15: Sep | L15: 4.7 | M15: 50 | N15: 4.7 | O15: 18
A16: Oct | B16: 0 | C16: 3.172 | D16: 50 | E16: 10 | F16: 3.192 | G16: 19.7 | K16: Oct | L16: 4.7 | M16: 50 | N16: 4.7 | O16: 11.6
A17: Nov | B17: 0 | C17: 3.002 | D17: 85 | E17: 10 | F17: 3.002 | G17: 16.4 | K17: Nov | L17: 8 | M17: 50 | N17: 8 | O17: 16.4
A18: Dec | B18: 0 | C18: 13.54 | D18: 76 | E18: 10 | F18: 2.056 | G18: 7.5 | K18: Dec | L18: 4 | M18: 50 | N18: 4 | O18: 7.5
K19: Annual | L19: =AVERAGE(L7:L18) -> 4.316666667 | M19: =MAX(M7:M18) -> 50 | N19: =AVERAGE(N7:N18) -> 4.316666667 | O19: =MAX(O7:O18) -> 34.3
J21: =+A6 -> 2021 | K21: mg/Nm3 | L21: Monthly 1/2 hourly mean | M21: Monthly 1/2 hourly maximum | N21: Monthly daily mean | O21: Monthly daily maximum
J22: A2 | K22: Jan | L22: 2.6 | M22: 50 | N22: 2.6 | O22: 6.5
K23: Feb | L23: 2.5 | M23: 38 | N23: 2.5 | O23: 7.8
K24: Mar | L24: 3.5 | M24: 50 | N24: 3.5 | O24: 8.2
K25: Apr | L25: 2.4 | M25: 43 | N25: 2.4 | O25: 4.4
K26: May | L26: 2.8 | M26: 42 | N26: 2.8 | O26: 7.1
K27: Jun | L27: 2.3 | M27: 48 | N27: 2.3 | O27: 6.3
K28: Jul | L28: 4.6 | M28: 50 | N28: 4.6 | O28: 13.4
B29: Annual Performance Report 2021 | K29: Aug | L29: 6.1 | M29: 50 | N29: 6.1 | O29: 16.2
K30: Sep | L30: 3.3 | M30: 50 | N30: 3.3 | O30: 9.3
K31: Oct | L31: 7 | M31: 50 | N31: 7 | O31: 19.7
K32: Nov | L32: 2.9 | M32: 29 | N32: 2.9 | O32: 6.7
K33: Dec | L33: 2.2 | M33: 28 | N33: 2.2 | O33: 4.3
K34: Annual | L34: =AVERAGE(L22:L33) -> 3.516666667 | M34: =MAX(M22:M33) -> 50 | N34: =AVERAGE(N22:N33) -> 3.516666667 | O34: =MAX(O22:O33) -> 19.7
J36: =+A6 -> 2021 | K36: mg/Nm3 | L36: Monthly 1/2 hourly mean | M36: Monthly 1/2 hourly maximum | N36: Monthly daily mean | O36: Monthly daily maximum
J37: A3 | K37: Jan | L37: 1.6 | M37: 43 | N37: 1.6 | O37: 3.6
K38: Feb | L38: 1.4 | M38: 67.3 | N38: 1.4 | O38: 2.4
C39: 2021 | K39: Mar | L39: 2.3 | M39: 28.3 | N39: 2.3 | O39: 12.3
K40: Apr | L40: 1.8 | M40: 108 | N40: 1.8 | O40: 8.1
K41: May | L41: 2.2 | M41: 39 | N41: 2.2 | O41: 3.1
K42: Jun | L42: 2.6 | M42: 9.3 | N42: 2.6 | O42: 3.2
K43: Jul | L43: 1.7 | M43: 20.5 | N43: 1.7 | O43: 2.7
K44: Aug | L44: 2.5 | M44: 10.2 | N44: 2.5 | O44: 5
K45: Sep | L45: 2.3 | M45: 57 | N45: 2.3 | O45: 4.2
K46: Oct | L46: 2.2 | M46: 15.3 | N46: 2.3 | O46: 3.5
K47: Nov | L47: 2.3 | M47: 85 | N47: 2.3 | O47: 6.4
A48: Comments : | K48: Dec | L48: 2.1 | M48: 76 | N48: 2.1 | O48: 4.3
A49: An indicated ELV value of zero in the table above means that no ammonia limit is set in the permit. | K49: Annual | L49: =AVERAGE(L37:L48) -> 2.083333333 | M49: =MAX(M37:M48) -> 108 | N49: =AVERAGE(N37:N48) -> 2.091666667 | O49: =MAX(O37:O48) -> 12.3
J51: =+A6 -> 2021 | K51: mg/Nm3 | L51: Monthly 1/2 hourly mean | M51: Monthly 1/2 hourly maximum | N51: Monthly daily mean | O51: Monthly daily maximum
J52: A4 | K52: Jan | L52: 0.4 | M52: 4.47 | N52: 0.4 | O52: 1
K53: Feb | L53: 0.65 | M53: 8 | N53: 0.65 | O53: 1.73
K54: Mar | L54: 0.41 | M54: 15.6 | N54: 0.41 | O54: 1.39
K55: Apr | L55: 0.12 | M55: 3.91 | N55: 0.12 | O55: 0.49
K56: May | L56: 0.37 | M56: 6.56 | N56: 0.37 | O56: 1.32
K57: Jun | L57: 0.29 | M57: 8.45 | N57: 0.29 | O57: 1.26
K58: Jul | L58: 1 | M58: 6.73 | N58: 1 | O58: 4.61
K59: Aug | L59: 1.09 | M59: 9.65 | N59: 1.09 | O59: 5.02
K60: Sep | L60: 0.2 | M60: 4.3 | N60: 0.2 | O60: 0.9
K61: Oct | L61: 0.16 | M61: 10 | N61: 0.16 | O61: 0.72
K62: Nov | L62: 0.11 | M62: 2.91 | N62: 0.11 | O62: 0.33
K63: Dec | L63: 58 | M63: 5.4 | N63: 0.58 | O63: 1.23
K64: Annual | L64: =AVERAGE(L52:L63) -> 5.233333333 | M64: =MAX(M52:M63) -> 15.6 | N64: =AVERAGE(N52:N63) -> 0.4483333333 | O64: =MAX(O52:O63) -> 5.02
J66: =+A6 -> 2021 | K66: mg/Nm3 | L66: Monthly 1/2 hourly mean | M66: Monthly 1/2 hourly maximum | N66: Monthly daily mean | O66: Monthly daily maximum
J67: A5 | K67: Jan | L67: 1.1 | M67: 5.36 | N67: 1.1 | O67: 1.43
K68: Feb | L68: 96 | M68: 8.2 | N68: 0.96 | O68: 2.36
K69: Mar | L69: 1.3 | M69: 16.34 | N69: 1.3 | O69: 1.96
K70: Apr | L70: 1.36 | M70: 34 | N70: 1.36 | O70: 2.5
K71: May | L71: 2.05 | M71: 37 | N71: 2.05 | O71: 2.96
K72: Jun | L72: 2.74 | M72: 10.55 | N72: 2.74 | O72: 3.7
K73: Jul | L73: 1.6 | M73: 5.18 | N73: 1.6 | O73: 2.76
K74: Aug | L74: 3.01 | M74: 25 | N74: 3 | O74: 4.1
K75: Sep | L75: 1.9 | M75: 50 | N75: 1.9 | O75: 3.25
K76: Oct | L76: 1.8 | M76: 8.55 | N76: 1.8 | O76: 2.74
K77: Nov | L77: 1.7 | M77: 25 | N77: 1.7 | O77: 3.1
K78: Dec | L78: 1.4 | M78: 8.4 | N78: 1.4 | O78: 2.5
K79: Annual | L79: =AVERAGE(L67:L78) -> 9.663333333 | M79: =MAX(M67:M78) -> 50 | N79: =AVERAGE(N67:N78) -> 1.7425 | O79: =MAX(O67:O78) -> 4.1
